{"text_format":"1","workbook":"xlsx","n_sheets":1,"sheets":["hod mincou"],"not_rendered":{"charts":1,"images":1,"macros":0,"external_links":0,"defined_names":1,"comments":1,"pivot_tables":0},"unopened":[],"bounds":{"document_bytes":16777216,"sheet_cells":100000,"rows_first":2000,"rows_last":500,"rows_between":2000,"halvings":0,"cell_chars":16384,"cell_head_chars":4096},"cells_cut":0,"cells_raw":0,"read":"whole","date_system":"1904"}

{"sheet":"hod mincou","index":0,"n_rows":1006,"n_cols":19,"rows_kept":1006,"cut":false,"hidden":false,"merged":[[0,1,0,12]]}
[]
[null,null,null,null,null,null,null,null,null,1]
[null,"Press F9 for the next round."]
[]
[null,"PIP","RRR",null,null,null,null,null,null,null,null,null,null,"Hody"]
[null,10,1,null,null,null,null,null,null,null,null,null,null,{"$f":"INT(MOD(RAND(),2)*S6)","v":1},{"$f":"IF(N6,Q6,R6)","v":90},{"$f":"if","v":90},{"$f":"A12","v":90},{"$f":"A14","v":-110},{"$f":"M12","v":2}]
[null,null,null,null,null,null,null,null,null,null,null,null,null,{"$f":"INT(MOD(RAND(),2)*S7)","v":0},{"$f":"IF(N7,Q7,R7)","v":-110},{"$f":"O7+P6","v":-20},{"$f":"Q6","v":90},{"$f":"R6","v":-110},{"$f":"S6","v":2}]
["Lost",{"$f":"COUNTIF(N6:N2006, \"0\")","v":511},{"$f":"B8/1000","v":0.51100000000000001},null,null,null,null,null,null,null,null,null,null,0,-110,{"$f":"O8+P7","v":-130},{"$f":"Q7","v":90},{"$f":"R7","v":-110},2]
["Win",{"$f":"COUNTIF(N6:N2006, \"1\")","v":490},{"$f":"B9/1000","v":0.49},null,null,null,null,null,null,null,null,null,null,0,-110,-240,90,-110,2]
[null," ",null,null,null,null,null,null,null,null,null,null,null,0,-110,-350,90,-110,2]
["zisk",null,null,null,null,null,null,null,null,null,"OBJEM",null,"WIN",1,90,-260,90,-110,2]
[{"$f":"B6*L12*C6-L12","v":90},null,null,null,null,null,null,100,null,null,{"$f":"L12/10","v":1},{"$f":"H12/B6","v":10},{"$f":"J2/C6+1","v":2},1,90,-170,90,-110,2]
["strata",null,null,null,null,null,null,null,null,null,null,null,null,1,90,-80,90,-110,2]
[{"$f":"-B6*L12*J2-L12","v":-110},null,null,null,null,null,null,null,null,null,null,null,null,0,-110,-190,90,-110,2]
[null,null,null,null,null,null,null,null,null,null,null,null,null,0,-110,-300,90,-110,2]
[null,null,null,null,null,null,null,null,null,null,null,null,null,0,-110,-410,90,-110,2]
[null,null,null,null,null,null,null,null,null,null,null,null,null,1,90,-320,90,-110,2]
[null,null,null,null,null,null,null,null,null,null,null,null,null,1,90,-230,90,-110,2]
[null,null,null,null,null,null,null,null,null,null,null,null,null,1,90,-140,90,-110,2]
[null,null,null,null,null,null,null,null,null,null,null,null,null,1,90,-50,90,-110,2]
[null,null,null,null,null,null,null,null,null,null,null,null,null,0,-110,-160,90,-110,2]
[null,null,null,null,null,null,null,null,null,null,null,null,null,0,-110,-270,90,-110,2]
[null,null,null,null,null,null,null,null,null,null,null,null,null,1,90,-180,90,-110,2]
[null,null,null,null,null,null,null,null,null,null,null,null,null,1,90,-90,90,-110,2]
[null,null,null,null,null,null,null,null,null,null,null,null,null,0,-110,-200,90,-110,2]
[null,null,null,null,null,null,null,null,null,null,null,null,null,1,90,-110,90,-110,2]
[null,null,null,null,null,null,null,null,null,null,null,null,null,0,-110,-220,{"$f":"Q26","v":90},-110,2]
[null,null,null,null,null,null,null,null,null,null,null,null,null,1,90,-130,90,-110,2]
[null,null,null,null,null,null,null,null,null,null,null,null,null,0,-110,-240,90,-110,2]
[null,null,null,null,null,null,null,null,null,null,null,0.01,null,0,-110,-350,90,-110,2]
[null,null,null,null,null,null,null,null,null,null,null,null,null,1,90,-260,90,-110,2]
[null,null,null,null,null,null,null,null,null,null,null,null,null,0,-110,-370,90,-110,2]
[null,null,null,null,null,null,null,null,null,null,null,null,null,1,90,-280,90,-110,2]
[null,null,null,null,null,null,null,null,null,null,null,null,null,1,90,-190,90,-110,2]
[null,null,null,null,null,null,null,null,null,null,null,null,null,0,-110,-300,90,-110,2]
[null,null,null,null,null,null,null,null,null,null,null,null,null,0,-110,-410,90,-110,2]
[null,null,null,null,null,null,null,null,null,null,null,null,null,0,-110,-520,90,-110,2]
[null,null,null,null,null,null,null,null,null,null,null,null,null,0,-110,-630,90,-110,2]
[null,null,null,null,null,null,null,null,null,null,null,null,null,0,-110,-740,90,-110,2]
[null,null,null,null,null,null,null,null,null,null,null,null,null,1,90,-650,90,-110,2]
[null,null,null,null,null,null,null,null,null,null,null,null,null,1,90,-560,90,-110,2]
[null,null,null,null,null,null,null,null,null,null,null,null,null,0,-110,-670,90,-110,2]
[null,null,null,null,null,null,null,null,null,null,null,null,null,1,90,-580,90,-110,2]
[null,null,null,null,null,null,null,null,null,null,null,null,null,0,-110,-690,90,-110,2]
[null,null,null,null,null,null,null,null,null,null,null,null,null,1,90,-600,90,-110,2]
[null,null,null,null,null,null,null,null,null,null,null,null,null,1,90,-510,90,-110,2]
[null,null,null,null,null,null,null,null,null,null,null,null,null,1,90,-420,90,-110,2]
[null,null,null,null,null,null,null,null,null,null,null,null,null,1,90,-330,90,-110,2]
[null,null,null,null,null,null,null,null,null,null,null,null,null,0,-110,-440,90,-110,2]
[null,null,null,null,null,null,null,null,null,null,null,null,null,0,-110,-550,90,-110,2]
[null,null,null,null,null,null,null,null,null,null,null,null,null,1,90,-460,90,-110,2]
[null,null,null,null,null,null,null,null,null,null,null,null,null,0,-110,-570,90,-110,2]
[null,null,null,null,null,null,null,null,null,null,null,null,null,0,-110,-680,90,-110,2]
[null,null,null,null,null,null,null,null,null,null,null,null,null,1,90,-590,90,-110,2]
[null,null,null,null,null,null,null,null,null,null,null,null,null,1,90,-500,90,-110,2]
[null,null,null,null,null,null,null,null,null,null,null,null,null,0,-110,-610,90,-110,2]
[null,null,null,null,null,null,null,null,null,null,null,null,null,0,-110,-720,90,-110,2]
[null,null,null,null,null,null,null,null,null,null,null,null,null,1,90,-630,90,-110,2]
[null,null,null,null,null,null,null,null,null,null,null,null,null,0,-110,-740,90,-110,2]
[null,null,null,null,null,null,null,null,null,null,null,null,null,1,90,-650,90,-110,2]
[null,null,null,null,null,null,null,null,null,null,null,null,null,0,-110,-760,90,-110,2]
[null,null,null,null,null,null,null,null,null,null,null,null,null,1,90,-670,90,-110,2]
[null,null,null,null,null,null,null,null,null,null,null,null,null,0,-110,-780,90,-110,2]
[null,null,null,null,null,null,null,null,null,null,null,null,null,1,90,-690,90,-110,2]
[null,null,null,null,null,null,null,null,null,null,null,null,null,0,-110,-800,90,-110,2]
[null,null,null,null,null,null,null,null,null,null,null,null,null,1,90,-710,90,-110,2]
[null,null,null,null,null,null,null,null,null,null,null,null,null,0,-110,-820,90,-110,2]
[null,null,null,null,null,null,null,null,null,null,null,null,null,1,90,-730,90,-110,2]
[null,null,null,null,null,null,null,null,null,null,null,null,null,1,90,-640,90,-110,2]
[null,null,null,null,null,null,null,null,null,null,null,null,null,0,-110,-750,90,-110,2]
[null,null,null,null,null,null,null,null,null,null,null,null,null,{"$f":"INT(MOD(RAND(),2)*S71)","v":1},{"$f":"IF(N71,Q71,R71)","v":90},-660,90,-110,2]
[null,null,null,null,null,null,null,null,null,null,null,null,null,1,90,{"$f":"O72+P71","v":-570},{"$f":"Q71","v":90},{"$f":"R71","v":-110},2]
[null,null,null,null,null,null,null,null,null,null,null,null,null,1,90,-480,90,-110,2]
[null,null,null,null,null,null,null,null,null,null,null,null,null,0,-110,-590,90,-110,2]
[null,null,null,null,null,null,null,null,null,null,null,null,null,1,90,-500,90,-110,2]
[null,null,null,null,null,null,null,null,null,null,null,null,null,1,90,-410,90,-110,2]
[null,null,null,null,null,null,null,null,null,null,null,null,null,0,-110,-520,90,-110,2]
[null,null,null,null,null,null,null,null,null,null,null,null,null,0,-110,-630,90,-110,2]
[null,null,null,null,null,null,null,null,null,null,null,null,null,1,90,-540,90,-110,2]
[null,null,null,null,null,null,null,null,null,null,null,null,null,0,-110,-650,90,-110,2]
[null,null,null,null,null,null,null,null,null,null,null,null,null,1,90,-560,90,-110,2]
[null,null,null,null,null,null,null,null,null,null,null,null,null,0,-110,-670,90,-110,2]
[null,null,null,null,null,null,null,null,null,null,null,null,null,0,-110,-780,90,-110,2]
[null,null,null,null,null,null,null,null,null,null,null,null,null,0,-110,-890,90,-110,2]
[null,null,null,null,null,null,null,null,null,null,null,null,null,1,90,-800,90,-110,2]
[null,null,null,null,null,null,null,null,null,null,null,null,null,0,-110,-910,90,-110,2]
[null,null,null,null,null,null,null,null,null,null,null,null,null,1,90,-820,90,-110,2]
[null,null,null,null,null,null,null,null,null,null,null,null,null,1,90,-730,90,-110,2]
[null,null,null,null,null,null,null,null,null,null,null,null,null,0,-110,-840,90,-110,2]
[null,null,null,null,null,null,null,null,null,null,null,null,null,0,-110,-950,90,-110,2]
[null,null,null,null,null,null,null,null,null,null,null,null,null,1,90,-860,90,-110,2]
[null,null,null,null,null,null,null,null,null,null,null,null,null,1,90,-770,90,-110,2]
[null,null,null,null,null,null,null,null,null,null,null,null,null,1,90,-680,90,-110,2]
[null,null,null,null,null,null,null,null,null,null,null,null,null,0,-110,-790,90,-110,2]
[null,null,null,null,null,null,null,null,null,null,null,null,null,1,90,-700,90,-110,2]
[null,null,null,null,null,null,null,null,null,null,null,null,null,0,-110,-810,90,-110,2]
[null,null,null,null,null,null,null,null,null,null,null,null,null,0,-110,-920,90,-110,2]
[null,null,null,null,null,null,null,null,null,null,null,null,null,0,-110,-1030,90,-110,2]
[null,null,null,null,null,null,null,null,null,null,null,null,null,1,90,-940,90,-110,2]
[null,null,null,null,null,null,null,null,null,null,null,null,null,0,-110,-1050,90,-110,2]
[null,null,null,null,null,null,null,null,null,null,null,null,null,1,90,-960,{"$f":"Q100","v":90},-110,2]
[null,null,null,null,null,null,null,null,null,null,null,null,null,0,-110,-1070,90,-110,2]
[null,null,null,null,null,null,null,null,null,null,null,null,null,0,-110,-1180,90,-110,2]
[null,null,null,null,null,null,null,null,null,null,null,null,null,1,90,-1090,90,-110,2]
[null,null,null,null,null,null,null,null,null,null,null,null,null,1,90,-1000,90,-110,2]
[null,null,null,null,null,null,null,null,null,null,null,null,null,1,90,-910,90,-110,2]
[null,null,null,null,null,null,null,null,null,null,null,null,null,1,90,-820,90,-110,2]
[null,null,null,null,null,null,null,null,null,null,null,null,null,1,90,-730,90,-110,2]
[null,null,null,null,null,null,null,null,null,null,null,null,null,1,90,-640,90,-110,2]
[null,null,null,null,null,null,null,null,null,null,null,null,null,0,-110,-750,90,-110,2]
[null,null,null,null,null,null,null,null,null,null,null,null,null,0,-110,-860,90,-110,2]
[null,null,null,null,null,null,null,null,null,null,null,null,null,0,-110,-970,90,-110,2]
[null,null,null,null,null,null,null,null,null,null,null,null,null,1,90,-880,90,-110,2]
[null,null,null,null,null,null,null,null,null,null,null,null,null,1,90,-790,90,-110,2]
[null,null,null,null,null,null,null,null,null,null,null,null,null,1,90,-700,90,-110,2]
[null,null,null,null,null,null,null,null,null,null,null,null,null,0,-110,-810,90,-110,2]
[null,null,null,null,null,null,null,null,null,null,null,null,null,1,90,-720,90,-110,2]
[null,null,null,null,null,null,null,null,null,null,null,null,null,1,90,-630,90,-110,2]
[null,null,null,null,null,null,null,null,null,null,null,null,null,0,-110,-740,90,-110,2]
[null,null,null,null,null,null,null,null,null,null,null,null,null,1,90,-650,90,-110,2]
[null,null,null,null,null,null,null,null,null,null,null,null,null,0,-110,-760,90,-110,2]
[null,null,null,null,null,null,null,null,null,null,null,null,null,0,-110,-870,90,-110,2]
[null,null,null,null,null,null,null,null,null,null,null,null,null,0,-110,-980,90,-110,2]
[null,null,null,null,null,null,null,null,null,null,null,null,null,0,-110,-1090,90,-110,2]
[null,null,null,null,null,null,null,null,null,null,null,null,null,0,-110,-1200,90,-110,2]
[null,null,null,null,null,null,null,null,null,null,null,null,null,0,-110,-1310,90,-110,2]
[null,null,null,null,null,null,null,null,null,null,null,null,null,0,-110,-1420,90,-110,2]
[null,null,null,null,null,null,null,null,null,null,null,null,null,0,-110,-1530,90,-110,2]
[null,null,null,null,null,null,null,null,null,null,null,null,null,1,90,-1440,90,-110,2]
[null,null,null,null,null,null,null,null,null,null,null,null,null,1,90,-1350,90,-110,2]
[null,null,null,null,null,null,null,null,null,null,null,null,null,0,-110,-1460,90,-110,2]
[null,null,null,null,null,null,null,null,null,null,null,null,null,1,90,-1370,90,-110,2]
[null,null,null,null,null,null,null,null,null,null,null,null,null,0,-110,-1480,90,-110,2]
[null,null,null,null,null,null,null,null,null,null,null,null,null,0,-110,-1590,90,-110,2]
[null,null,null,null,null,null,null,null,null,null,null,null,null,{"$f":"INT(MOD(RAND(),2)*S135)","v":0},{"$f":"IF(N135,Q135,R135)","v":-110},-1700,90,-110,2]
[null,null,null,null,null,null,null,null,null,null,null,null,null,1,90,{"$f":"O136+P135","v":-1610},{"$f":"Q135","v":90},-110,2]
[null,null,null,null,null,null,null,null,null,null,null,null,null,1,90,-1520,90,-110,2]
[null,null,null,null,null,null,null,null,null,null,null,null,null,1,90,-1430,90,-110,2]
[null,null,null,null,null,null,null,null,null,null,null,null,null,0,-110,-1540,90,-110,2]
[null,null,null,null,null,null,null,null,null,null,null,null,null,1,90,-1450,90,-110,2]
[null,null,null,null,null,null,null,null,null,null,null,null,null,0,-110,-1560,90,-110,2]
[null,null,null,null,null,null,null,null,null,null,null,null,null,0,-110,-1670,90,-110,2]
[null,null,null,null,null,null,null,null,null,null,null,null,null,0,-110,-1780,90,-110,2]
[null,null,null,null,null,null,null,null,null,null,null,null,null,1,90,-1690,90,-110,2]
[null,null,null,null,null,null,null,null,null,null,null,null,null,1,90,-1600,90,-110,2]
[null,null,null,null,null,null,null,null,null,null,null,null,null,1,90,-1510,90,-110,2]
[null,null,null,null,null,null,null,null,null,null,null,null,null,0,-110,-1620,90,-110,2]
[null,null,null,null,null,null,null,null,null,null,null,null,null,1,90,-1530,90,-110,2]
[null,null,null,null,null,null,null,null,null,null,null,null,null,0,-110,-1640,90,-110,2]
[null,null,null,null,null,null,null,null,null,null,null,null,null,0,-110,-1750,90,-110,2]
[null,null,null,null,null,null,null,null,null,null,null,null,null,1,90,-1660,90,-110,2]
[null,null,null,null,null,null,null,null,null,null,null,null,null,1,90,-1570,90,-110,2]
[null,null,null,null,null,null,null,null,null,null,null,null,null,0,-110,-1680,90,-110,2]
[null,null,null,null,null,null,null,null,null,null,null,null,null,1,90,-1590,90,-110,2]
[null,null,null,null,null,null,null,null,null,null,null,null,null,0,-110,-1700,90,-110,2]
[null,null,null,null,null,null,null,null,null,null,null,null,null,0,-110,-1810,90,-110,2]
[null,null,null,null,null,null,null,null,null,null,null,null,null,0,-110,-1920,90,-110,2]
[null,null,null,null,null,null,null,null,null,null,null,null,null,0,-110,-2030,90,-110,2]
[null,null,null,null,null,null,null,null,null,null,null,null,null,0,-110,-2140,90,-110,2]
[null,null,null,null,null,null,null,null,null,null,null,null,null,0,-110,-2250,90,-110,2]
[null,null,null,null,null,null,null,null,null,null,null,null,null,1,90,-2160,90,-110,2]
[null,null,null,null,null,null,null,null,null,null,null,null,null,1,90,-2070,90,-110,2]
[null,null,null,null,null,null,null,null,null,null,null,null,null,1,90,-1980,90,-110,2]
[null,null,null,null,null,null,null,null,null,null,null,null,null,0,-110,-2090,90,-110,2]
[null,null,null,null,null,null,null,null,null,null,null,null,null,1,90,-2000,90,-110,2]
[null,null,null,null,null,null,null,null,null,null,null,null,null,0,-110,-2110,90,-110,2]
[null,null,null,null,null,null,null,null,null,null,null,null,null,0,-110,-2220,90,-110,2]
[null,null,null,null,null,null,null,null,null,null,null,null,null,1,90,-2130,90,-110,2]
[null,null,null,null,null,null,null,null,null,null,null,null,null,0,-110,-2240,90,-110,2]
[null,null,null,null,null,null,null,null,null,null,null,null,null,0,-110,-2350,90,-110,2]
[null,null,null,null,null,null,null,null,null,null,null,null,null,1,90,-2260,90,-110,2]
[null,null,null,null,null,null,null,null,null,null,null,null,null,1,90,-2170,90,-110,2]
[null,null,null,null,null,null,null,null,null,null,null,null,null,0,-110,-2280,90,-110,2]
[null,null,null,null,null,null,null,null,null,null,null,null,null,1,90,-2190,90,-110,2]
[null,null,null,null,null,null,null,null,null,null,null,null,null,1,90,-2100,90,-110,2]
[null,null,null,null,null,null,null,null,null,null,null,null,null,1,90,-2010,90,-110,2]
[null,null,null,null,null,null,null,null,null,null,null,null,null,1,90,-1920,90,-110,2]
[null,null,null,null,null,null,null,null,null,null,null,null,null,0,-110,-2030,90,-110,2]
[null,null,null,null,null,null,null,null,null,null,null,null,null,0,-110,-2140,90,-110,2]
[null,null,null,null,null,null,null,null,null,null,null,null,null,0,-110,-2250,90,-110,2]
[null,null,null,null,null,null,null,null,null,null,null,null,null,0,-110,-2360,90,-110,2]
[null,null,null,null,null,null,null,null,null,null,null,null,null,0,-110,-2470,90,-110,2]
[null,null,null,null,null,null,null,null,null,null,null,null,null,1,90,-2380,90,-110,2]
[null,null,null,null,null,null,null,null,null,null,null,null,null,1,90,-2290,90,-110,2]
[null,null,null,null,null,null,null,null,null,null,null,null,null,0,-110,-2400,90,-110,2]
[null,null,null,null,null,null,null,null,null,null,null,null,null,0,-110,-2510,90,-110,2]
[null,null,null,null,null,null,null,null,null,null,null,null,null,1,90,-2420,90,-110,2]
[null,null,null,null,null,null,null,null,null,null,null,null,null,0,-110,-2530,90,-110,2]
[null,null,null,null,null,null,null,null,null,null,null,null,null,0,-110,-2640,90,-110,2]
[null,null,null,null,null,null,null,null,null,null,null,null,null,1,90,-2550,90,-110,2]
[null,null,null,null,null,null,null,null,null,null,null,null,null,0,-110,-2660,90,-110,2]
[null,null,null,null,null,null,null,null,null,null,null,null,null,0,-110,-2770,90,-110,2]
[null,null,null,null,null,null,null,null,null,null,null,null,null,0,-110,-2880,90,-110,2]
[null,null,null,null,null,null,null,null,null,null,null,null,null,0,-110,-2990,90,-110,2]
[null,null,null,null,null,null,null,null,null,null,null,null,null,1,90,-2900,90,-110,2]
[null,null,null,null,null,null,null,null,null,null,null,null,null,0,-110,-3010,90,-110,2]
[null,null,null,null,null,null,null,null,null,null,null,null,null,1,90,-2920,90,-110,2]
[null,null,null,null,null,null,null,null,null,null,null,null,null,0,-110,-3030,90,-110,2]
[null,null,null,null,null,null,null,null,null,null,null,null,null,{"$f":"INT(MOD(RAND(),2)*S199)","v":1},{"$f":"IF(N199,Q199,R199)","v":90},-2940,90,-110,2]
[null,null,null,null,null,null,null,null,null,null,null,null,null,0,-110,{"$f":"O200+P199","v":-3050},{"$f":"Q199","v":90},-110,2]
[null,null,null,null,null,null,null,null,null,null,null,null,null,1,90,-2960,90,-110,2]
[null,null,null,null,null,null,null,null,null,null,null,null,null,1,90,-2870,90,-110,2]
[null,null,null,null,null,null,null,null,null,null,null,null,null,0,-110,-2980,90,-110,2]
[null,null,null,null,null,null,null,null,null,null,null,null,null,0,-110,-3090,90,-110,2]
[null,null,null,null,null,null,null,null,null,null,null,null,null,0,-110,-3200,90,-110,2]
[null,null,null,null,null,null,null,null,null,null,null,null,null,0,-110,-3310,90,-110,2]
[null,null,null,null,null,null,null,null,null,null,null,null,null,1,90,-3220,90,-110,2]
[null,null,null,null,null,null,null,null,null,null,null,null,null,1,90,-3130,90,-110,2]
[null,null,null,null,null,null,null,null,null,null,null,null,null,1,90,-3040,90,-110,2]
[null,null,null,null,null,null,null,null,null,null,null,null,null,0,-110,-3150,90,-110,2]
[null,null,null,null,null,null,null,null,null,null,null,null,null,1,90,-3060,90,-110,2]
[null,null,null,null,null,null,null,null,null,null,null,null,null,1,90,-2970,90,-110,2]
[null,null,null,null,null,null,null,null,null,null,null,null,null,1,90,-2880,90,-110,2]
[null,null,null,null,null,null,null,null,null,null,null,null,null,0,-110,-2990,90,-110,2]
[null,null,null,null,null,null,null,null,null,null,null,null,null,1,90,-2900,90,-110,2]
[null,null,null,null,null,null,null,null,null,null,null,null,null,1,90,-2810,90,-110,2]
[null,null,null,null,null,null,null,null,null,null,null,null,null,0,-110,-2920,90,-110,2]
[null,null,null,null,null,null,null,null,null,null,null,null,null,0,-110,-3030,90,-110,2]
[null,null,null,null,null,null,null,null,null,null,null,null,null,1,90,-2940,90,-110,2]
[null,null,null,null,null,null,null,null,null,null,null,null,null,0,-110,-3050,90,-110,2]
[null,null,null,null,null,null,null,null,null,null,null,null,null,0,-110,-3160,90,-110,2]
[null,null,null,null,null,null,null,null,null,null,null,null,null,0,-110,-3270,90,-110,2]
[null,null,null,null,null,null,null,null,null,null,null,null,null,1,90,-3180,90,-110,2]
[null,null,null,null,null,null,null,null,null,null,null,null,null,1,90,-3090,90,-110,2]
[null,null,null,null,null,null,null,null,null,null,null,null,null,0,-110,-3200,90,-110,2]
[null,null,null,null,null,null,null,null,null,null,null,null,null,0,-110,-3310,90,-110,2]
[null,null,null,null,null,null,null,null,null,null,null,null,null,1,90,-3220,90,-110,2]
[null,null,null,null,null,null,null,null,null,null,null,null,null,1,90,-3130,90,-110,2]
[null,null,null,null,null,null,null,null,null,null,null,null,null,1,90,-3040,90,-110,2]
[null,null,null,null,null,null,null,null,null,null,null,null,null,1,90,-2950,90,-110,2]
[null,null,null,null,null,null,null,null,null,null,null,null,null,0,-110,-3060,90,-110,2]
[null,null,null,null,null,null,null,null,null,null,null,null,null,0,-110,-3170,90,-110,2]
[null,null,null,null,null,null,null,null,null,null,null,null,null,1,90,-3080,90,-110,2]
[null,null,null,null,null,null,null,null,null,null,null,null,null,0,-110,-3190,90,-110,2]
[null,null,null,null,null,null,null,null,null,null,null,null,null,1,90,-3100,90,-110,2]
[null,null,null,null,null,null,null,null,null,null,null,null,null,0,-110,-3210,90,-110,2]
[null,null,null,null,null,null,null,null,null,null,null,null,null,1,90,-3120,90,-110,2]
[null,null,null,null,null,null,null,null,null,null,null,null,null,1,90,-3030,90,-110,2]
[null,null,null,null,null,null,null,null,null,null,null,null,null,0,-110,-3140,90,-110,2]
[null,null,null,null,null,null,null,null,null,null,null,null,null,1,90,-3050,90,-110,2]
[null,null,null,null,null,null,null,null,null,null,null,null,null,1,90,-2960,90,-110,2]
[null,null,null,null,null,null,null,null,null,null,null,null,null,0,-110,-3070,90,-110,2]
[null,null,null,null,null,null,null,null,null,null,null,null,null,0,-110,-3180,90,-110,2]
[null,null,null,null,null,null,null,null,null,null,null,null,null,1,90,-3090,90,-110,2]
[null,null,null,null,null,null,null,null,null,null,null,null,null,1,90,-3000,90,-110,2]
[null,null,null,null,null,null,null,null,null,null,null,null,null,0,-110,-3110,90,-110,2]
[null,null,null,null,null,null,null,null,null,null,null,null,null,0,-110,-3220,90,-110,2]
[null,null,null,null,null,null,null,null,null,null,null,null,null,1,90,-3130,90,-110,2]
[null,null,null,null,null,null,null,null,null,null,null,null,null,1,90,-3040,90,-110,2]
[null,null,null,null,null,null,null,null,null,null,null,null,null,1,90,-2950,90,-110,2]
[null,null,null,null,null,null,null,null,null,null,null,null,null,1,90,-2860,90,-110,2]
[null,null,null,null,null,null,null,null,null,null,null,null,null,0,-110,-2970,90,-110,2]
[null,null,null,null,null,null,null,null,null,null,null,null,null,1,90,-2880,90,-110,2]
[null,null,null,null,null,null,null,null,null,null,null,null,null,0,-110,-2990,90,-110,2]
[null,null,null,null,null,null,null,null,null,null,null,null,null,1,90,-2900,90,-110,2]
[null,null,null,null,null,null,null,null,null,null,null,null,null,0,-110,-3010,90,-110,2]
[null,null,null,null,null,null,null,null,null,null,null,null,null,0,-110,-3120,90,-110,2]
[null,null,null,null,null,null,null,null,null,null,null,null,null,0,-110,-3230,90,-110,2]
[null,null,null,null,null,null,null,null,null,null,null,null,null,0,-110,-3340,90,-110,2]
[null,null,null,null,null,null,null,null,null,null,null,null,null,1,90,-3250,90,-110,2]
[null,null,null,null,null,null,null,null,null,null,null,null,null,1,90,-3160,90,-110,2]
[null,null,null,null,null,null,null,null,null,null,null,null,null,0,-110,-3270,90,-110,2]
[null,null,null,null,null,null,null,null,null,null,null,null,null,{"$f":"INT(MOD(RAND(),2)*S263)","v":1},{"$f":"IF(N263,Q263,R263)","v":90},-3180,90,-110,2]
[null,null,null,null,null,null,null,null,null,null,null,null,null,0,-110,{"$f":"O264+P263","v":-3290},{"$f":"Q263","v":90},-110,2]
[null,null,null,null,null,null,null,null,null,null,null,null,null,0,-110,-3400,90,-110,2]
[null,null,null,null,null,null,null,null,null,null,null,null,null,0,-110,-3510,90,-110,2]
[null,null,null,null,null,null,null,null,null,null,null,null,null,0,-110,-3620,90,-110,2]
[null,null,null,null,null,null,null,null,null,null,null,null,null,0,-110,-3730,90,-110,2]
[null,null,null,null,null,null,null,null,null,null,null,null,null,1,90,-3640,90,-110,2]
[null,null,null,null,null,null,null,null,null,null,null,null,null,1,90,-3550,90,-110,2]
[null,null,null,null,null,null,null,null,null,null,null,null,null,0,-110,-3660,90,-110,2]
[null,null,null,null,null,null,null,null,null,null,null,null,null,1,90,-3570,90,-110,2]
[null,null,null,null,null,null,null,null,null,null,null,null,null,0,-110,-3680,90,-110,2]
[null,null,null,null,null,null,null,null,null,null,null,null,null,0,-110,-3790,90,-110,2]
[null,null,null,null,null,null,null,null,null,null,null,null,null,1,90,-3700,90,-110,2]
[null,null,null,null,null,null,null,null,null,null,null,null,null,1,90,-3610,90,-110,2]
[null,null,null,null,null,null,null,null,null,null,null,null,null,1,90,-3520,90,-110,2]
[null,null,null,null,null,null,null,null,null,null,null,null,null,1,90,-3430,90,-110,2]
[null,null,null,null,null,null,null,null,null,null,null,null,null,1,90,-3340,90,-110,2]
[null,null,null,null,null,null,null,null,null,null,null,null,null,1,90,-3250,90,-110,2]
[null,null,null,null,null,null,null,null,null,null,null,null,null,1,90,-3160,90,-110,2]
[null,null,null,null,null,null,null,null,null,null,null,null,null,1,90,-3070,90,-110,2]
[null,null,null,null,null,null,null,null,null,null,null,null,null,0,-110,-3180,90,-110,2]
[null,null,null,null,null,null,null,null,null,null,null,null,null,0,-110,-3290,90,-110,2]
[null,null,null,null,null,null,null,null,null,null,null,null,null,0,-110,-3400,90,-110,2]
[null,null,null,null,null,null,null,null,null,null,null,null,null,1,90,-3310,90,-110,2]
[null,null,null,null,null,null,null,null,null,null,null,null,null,0,-110,-3420,90,-110,2]
[null,null,null,null,null,null,null,null,null,null,null,null,null,0,-110,-3530,90,-110,2]
[null,null,null,null,null,null,null,null,null,null,null,null,null,1,90,-3440,90,-110,2]
[null,null,null,null,null,null,null,null,null,null,null,null,null,0,-110,-3550,90,-110,2]
[null,null,null,null,null,null,null,null,null,null,null,null,null,1,90,-3460,90,-110,2]
[null,null,null,null,null,null,null,null,null,null,null,null,null,1,90,-3370,90,-110,2]
[null,null,null,null,null,null,null,null,null,null,null,null,null,1,90,-3280,90,-110,2]
[null,null,null,null,null,null,null,null,null,null,null,null,null,0,-110,-3390,90,-110,2]
[null,null,null,null,null,null,null,null,null,null,null,null,null,0,-110,-3500,90,-110,2]
[null,null,null,null,null,null,null,null,null,null,null,null,null,0,-110,-3610,90,-110,2]
[null,null,null,null,null,null,null,null,null,null,null,null,null,1,90,-3520,90,-110,2]
[null,null,null,null,null,null,null,null,null,null,null,null,null,1,90,-3430,90,-110,2]
[null,null,null,null,null,null,null,null,null,null,null,null,null,1,90,-3340,90,-110,2]
[null,null,null,null,null,null,null,null,null,null,null,null,null,0,-110,-3450,90,-110,2]
[null,null,null,null,null,null,null,null,null,null,null,null,null,1,90,-3360,90,-110,2]
[null,null,null,null,null,null,null,null,null,null,null,null,null,0,-110,-3470,90,-110,2]
[null,null,null,null,null,null,null,null,null,null,null,null,null,0,-110,-3580,90,-110,2]
[null,null,null,null,null,null,null,null,null,null,null,null,null,0,-110,-3690,90,-110,2]
[null,null,null,null,null,null,null,null,null,null,null,null,null,0,-110,-3800,90,-110,2]
[null,null,null,null,null,null,null,null,null,null,null,null,null,1,90,-3710,90,-110,2]
[null,null,null,null,null,null,null,null,null,null,null,null,null,0,-110,-3820,90,-110,2]
[null,null,null,null,null,null,null,null,null,null,null,null,null,1,90,-3730,90,-110,2]
[null,null,null,null,null,null,null,null,null,null,null,null,null,0,-110,-3840,90,-110,2]
[null,null,null,null,null,null,null,null,null,null,null,null,null,1,90,-3750,90,-110,2]
[null,null,null,null,null,null,null,null,null,null,null,null,null,1,90,-3660,90,-110,2]
[null,null,null,null,null,null,null,null,null,null,null,null,null,0,-110,-3770,90,-110,2]
[null,null,null,null,null,null,null,null,null,null,null,null,null,1,90,-3680,90,-110,2]
[null,null,null,null,null,null,null,null,null,null,null,null,null,1,90,-3590,90,-110,2]
[null,null,null,null,null,null,null,null,null,null,null,null,null,1,90,-3500,90,-110,2]
[null,null,null,null,null,null,null,null,null,null,null,null,null,0,-110,-3610,90,-110,2]
[null,null,null,null,null,null,null,null,null,null,null,null,null,0,-110,-3720,90,-110,2]
[null,null,null,null,null,null,null,null,null,null,null,null,null,1,90,-3630,90,-110,2]
[null,null,null,null,null,null,null,null,null,null,null,null,null,0,-110,-3740,90,-110,2]
[null,null,null,null,null,null,null,null,null,null,null,null,null,1,90,-3650,90,-110,2]
[null,null,null,null,null,null,null,null,null,null,null,null,null,1,90,-3560,90,-110,2]
[null,null,null,null,null,null,null,null,null,null,null,null,null,0,-110,-3670,90,-110,2]
[null,null,null,null,null,null,null,null,null,null,null,null,null,1,90,-3580,90,-110,2]
[null,null,null,null,null,null,null,null,null,null,null,null,null,1,90,-3490,90,-110,2]
[null,null,null,null,null,null,null,null,null,null,null,null,null,1,90,-3400,90,-110,2]
[null,null,null,null,null,null,null,null,null,null,null,null,null,1,90,-3310,90,-110,2]
[null,null,null,null,null,null,null,null,null,null,null,null,null,{"$f":"INT(MOD(RAND(),2)*S327)","v":0},{"$f":"IF(N327,Q327,R327)","v":-110},-3420,90,-110,2]
[null,null,null,null,null,null,null,null,null,null,null,null,null,0,-110,{"$f":"O328+P327","v":-3530},{"$f":"Q327","v":90},-110,2]
[null,null,null,null,null,null,null,null,null,null,null,null,null,1,90,-3440,90,-110,2]
[null,null,null,null,null,null,null,null,null,null,null,null,null,0,-110,-3550,90,-110,2]
[null,null,null,null,null,null,null,null,null,null,null,null,null,1,90,-3460,90,-110,2]
[null,null,null,null,null,null,null,null,null,null,null,null,null,0,-110,-3570,90,-110,2]
[null,null,null,null,null,null,null,null,null,null,null,null,null,0,-110,-3680,90,-110,2]
[null,null,null,null,null,null,null,null,null,null,null,null,null,0,-110,-3790,90,-110,2]
[null,null,null,null,null,null,null,null,null,null,null,null,null,0,-110,-3900,90,-110,2]
[null,null,null,null,null,null,null,null,null,null,null,null,null,0,-110,-4010,90,-110,2]
[null,null,null,null,null,null,null,null,null,null,null,null,null,0,-110,-4120,90,-110,2]
[null,null,null,null,null,null,null,null,null,null,null,null,null,1,90,-4030,90,-110,2]
[null,null,null,null,null,null,null,null,null,null,null,null,null,0,-110,-4140,90,-110,2]
[null,null,null,null,null,null,null,null,null,null,null,null,null,0,-110,-4250,90,-110,2]
[null,null,null,null,null,null,null,null,null,null,null,null,null,1,90,-4160,90,-110,2]
[null,null,null,null,null,null,null,null,null,null,null,null,null,0,-110,-4270,90,-110,2]
[null,null,null,null,null,null,null,null,null,null,null,null,null,1,90,-4180,90,-110,2]
[null,null,null,null,null,null,null,null,null,null,null,null,null,1,90,-4090,90,-110,2]
[null,null,null,null,null,null,null,null,null,null,null,null,null,1,90,-4000,90,-110,2]
[null,null,null,null,null,null,null,null,null,null,null,null,null,1,90,-3910,90,-110,2]
[null,null,null,null,null,null,null,null,null,null,null,null,null,1,90,-3820,90,-110,2]
[null,null,null,null,null,null,null,null,null,null,null,null,null,0,-110,-3930,90,-110,2]
[null,null,null,null,null,null,null,null,null,null,null,null,null,1,90,-3840,90,-110,2]
[null,null,null,null,null,null,null,null,null,null,null,null,null,1,90,-3750,90,-110,2]
[null,null,null,null,null,null,null,null,null,null,null,null,null,1,90,-3660,90,-110,2]
[null,null,null,null,null,null,null,null,null,null,null,null,null,0,-110,-3770,90,-110,2]
[null,null,null,null,null,null,null,null,null,null,null,null,null,1,90,-3680,90,-110,2]
[null,null,null,null,null,null,null,null,null,null,null,null,null,1,90,-3590,90,-110,2]
[null,null,null,null,null,null,null,null,null,null,null,null,null,0,-110,-3700,90,-110,2]
[null,null,null,null,null,null,null,null,null,null,null,null,null,1,90,-3610,90,-110,2]
[null,null,null,null,null,null,null,null,null,null,null,null,null,1,90,-3520,90,-110,2]
[null,null,null,null,null,null,null,null,null,null,null,null,null,0,-110,-3630,90,-110,2]
[null,null,null,null,null,null,null,null,null,null,null,null,null,0,-110,-3740,90,-110,2]
[null,null,null,null,null,null,null,null,null,null,null,null,null,1,90,-3650,90,-110,2]
[null,null,null,null,null,null,null,null,null,null,null,null,null,0,-110,-3760,90,-110,2]
[null,null,null,null,null,null,null,null,null,null,null,null,null,0,-110,-3870,90,-110,2]
[null,null,null,null,null,null,null,null,null,null,null,null,null,0,-110,-3980,90,-110,2]
[null,null,null,null,null,null,null,null,null,null,null,null,null,0,-110,-4090,90,-110,2]
[null,null,null,null,null,null,null,null,null,null,null,null,null,1,90,-4000,90,-110,2]
[null,null,null,null,null,null,null,null,null,null,null,null,null,0,-110,-4110,90,-110,2]
[null,null,null,null,null,null,null,null,null,null,null,null,null,0,-110,-4220,90,-110,2]
[null,null,null,null,null,null,null,null,null,null,null,null,null,0,-110,-4330,90,-110,2]
[null,null,null,null,null,null,null,null,null,null,null,null,null,1,90,-4240,90,-110,2]
[null,null,null,null,null,null,null,null,null,null,null,null,null,0,-110,-4350,90,-110,2]
[null,null,null,null,null,null,null,null,null,null,null,null,null,0,-110,-4460,90,-110,2]
[null,null,null,null,null,null,null,null,null,null,null,null,null,1,90,-4370,90,-110,2]
[null,null,null,null,null,null,null,null,null,null,null,null,null,0,-110,-4480,90,-110,2]
[null,null,null,null,null,null,null,null,null,null,null,null,null,1,90,-4390,90,-110,2]
[null,null,null,null,null,null,null,null,null,null,null,null,null,0,-110,-4500,90,-110,2]
[null,null,null,null,null,null,null,null,null,null,null,null,null,1,90,-4410,90,-110,2]
[null,null,null,null,null,null,null,null,null,null,null,null,null,1,90,-4320,90,-110,2]
[null,null,null,null,null,null,null,null,null,null,null,null,null,0,-110,-4430,90,-110,2]
[null,null,null,null,null,null,null,null,null,null,null,null,null,1,90,-4340,90,-110,2]
[null,null,null,null,null,null,null,null,null,null,null,null,null,0,-110,-4450,90,-110,2]
[null,null,null,null,null,null,null,null,null,null,null,null,null,0,-110,-4560,90,-110,2]
[null,null,null,null,null,null,null,null,null,null,null,null,null,0,-110,-4670,90,-110,2]
[null,null,null,null,null,null,null,null,null,null,null,null,null,1,90,-4580,90,-110,2]
[null,null,null,null,null,null,null,null,null,null,null,null,null,1,90,-4490,90,-110,2]
[null,null,null,null,null,null,null,null,null,null,null,null,null,0,-110,-4600,90,-110,2]
[null,null,null,null,null,null,null,null,null,null,null,null,null,0,-110,-4710,90,-110,2]
[null,null,null,null,null,null,null,null,null,null,null,null,null,0,-110,-4820,90,-110,2]
[null,null,null,null,null,null,null,null,null,null,null,null,null,1,90,-4730,90,-110,2]
[null,null,null,null,null,null,null,null,null,null,null,null,null,1,90,-4640,90,-110,2]
[null,null,null,null,null,null,null,null,null,null,null,null,null,0,-110,-4750,90,-110,2]
[null,null,null,null,null,null,null,null,null,null,null,null,null,{"$f":"INT(MOD(RAND(),2)*S391)","v":0},{"$f":"IF(N391,Q391,R391)","v":-110},-4860,90,-110,2]
[null,null,null,null,null,null,null,null,null,null,null,null,null,0,-110,{"$f":"O392+P391","v":-4970},{"$f":"Q391","v":90},-110,2]
[null,null,null,null,null,null,null,null,null,null,null,null,null,1,90,-4880,90,-110,2]
[null,null,null,null,null,null,null,null,null,null,null,null,null,0,-110,-4990,90,-110,2]
[null,null,null,null,null,null,null,null,null,null,null,null,null,1,90,-4900,90,-110,2]
[null,null,null,null,null,null,null,null,null,null,null,null,null,1,90,-4810,90,-110,2]
[null,null,null,null,null,null,null,null,null,null,null,null,null,1,90,-4720,90,-110,2]
[null,null,null,null,null,null,null,null,null,null,null,null,null,0,-110,-4830,90,-110,2]
[null,null,null,null,null,null,null,null,null,null,null,null,null,0,-110,-4940,90,-110,2]
[null,null,null,null,null,null,null,null,null,null,null,null,null,0,-110,-5050,90,-110,2]
[null,null,null,null,null,null,null,null,null,null,null,null,null,1,90,-4960,90,-110,2]
[null,null,null,null,null,null,null,null,null,null,null,null,null,1,90,-4870,90,-110,2]
[null,null,null,null,null,null,null,null,null,null,null,null,null,0,-110,-4980,90,-110,2]
[null,null,null,null,null,null,null,null,null,null,null,null,null,0,-110,-5090,90,-110,2]
[null,null,null,null,null,null,null,null,null,null,null,null,null,0,-110,-5200,90,-110,2]
[null,null,null,null,null,null,null,null,null,null,null,null,null,1,90,-5110,90,-110,2]
[null,null,null,null,null,null,null,null,null,null,null,null,null,0,-110,-5220,90,-110,2]
[null,null,null,null,null,null,null,null,null,null,null,null,null,1,90,-5130,90,-110,2]
[null,null,null,null,null,null,null,null,null,null,null,null,null,0,-110,-5240,90,-110,2]
[null,null,null,null,null,null,null,null,null,null,null,null,null,0,-110,-5350,90,-110,2]
[null,null,null,null,null,null,null,null,null,null,null,null,null,1,90,-5260,90,-110,2]
[null,null,null,null,null,null,null,null,null,null,null,null,null,0,-110,-5370,90,-110,2]
[null,null,null,null,null,null,null,null,null,null,null,null,null,1,90,-5280,90,-110,2]
[null,null,null,null,null,null,null,null,null,null,null,null,null,1,90,-5190,90,-110,2]
[null,null,null,null,null,null,null,null,null,null,null,null,null,1,90,-5100,90,-110,2]
[null,null,null,null,null,null,null,null,null,null,null,null,null,1,90,-5010,90,-110,2]
[null,null,null,null,null,null,null,null,null,null,null,null,null,0,-110,-5120,90,-110,2]
[null,null,null,null,null,null,null,null,null,null,null,null,null,1,90,-5030,90,-110,2]
[null,null,null,null,null,null,null,null,null,null,null,null,null,0,-110,-5140,90,-110,2]
[null,null,null,null,null,null,null,null,null,null,null,null,null,1,90,-5050,90,-110,2]
[null,null,null,null,null,null,null,null,null,null,null,null,null,1,90,-4960,90,-110,2]
[null,null,null,null,null,null,null,null,null,null,null,null,null,0,-110,-5070,90,-110,2]
[null,null,null,null,null,null,null,null,null,null,null,null,null,0,-110,-5180,90,-110,2]
[null,null,null,null,null,null,null,null,null,null,null,null,null,0,-110,-5290,90,-110,2]
[null,null,null,null,null,null,null,null,null,null,null,null,null,1,90,-5200,90,-110,2]
[null,null,null,null,null,null,null,null,null,null,null,null,null,0,-110,-5310,90,-110,2]
[null,null,null,null,null,null,null,null,null,null,null,null,null,1,90,-5220,90,-110,2]
[null,null,null,null,null,null,null,null,null,null,null,null,null,0,-110,-5330,90,-110,2]
[null,null,null,null,null,null,null,null,null,null,null,null,null,0,-110,-5440,90,-110,2]
[null,null,null,null,null,null,null,null,null,null,null,null,null,1,90,-5350,90,-110,2]
[null,null,null,null,null,null,null,null,null,null,null,null,null,1,90,-5260,90,-110,2]
[null,null,null,null,null,null,null,null,null,null,null,null,null,1,90,-5170,90,-110,2]
[null,null,null,null,null,null,null,null,null,null,null,null,null,1,90,-5080,90,-110,2]
[null,null,null,null,null,null,null,null,null,null,null,null,null,1,90,-4990,90,-110,2]
[null,null,null,null,null,null,null,null,null,null,null,null,null,0,-110,-5100,90,-110,2]
[null,null,null,null,null,null,null,null,null,null,null,null,null,0,-110,-5210,90,-110,2]
[null,null,null,null,null,null,null,null,null,null,null,null,null,0,-110,-5320,90,-110,2]
[null,null,null,null,null,null,null,null,null,null,null,null,null,1,90,-5230,90,-110,2]
[null,null,null,null,null,null,null,null,null,null,null,null,null,0,-110,-5340,90,-110,2]
[null,null,null,null,null,null,null,null,null,null,null,null,null,0,-110,-5450,90,-110,2]
[null,null,null,null,null,null,null,null,null,null,null,null,null,0,-110,-5560,90,-110,2]
[null,null,null,null,null,null,null,null,null,null,null,null,null,1,90,-5470,90,-110,2]
[null,null,null,null,null,null,null,null,null,null,null,null,null,1,90,-5380,90,-110,2]
[null,null,null,null,null,null,null,null,null,null,null,null,null,1,90,-5290,90,-110,2]
[null,null,null,null,null,null,null,null,null,null,null,null,null,1,90,-5200,90,-110,2]
[null,null,null,null,null,null,null,null,null,null,null,null,null,1,90,-5110,90,-110,2]
[null,null,null,null,null,null,null,null,null,null,null,null,null,0,-110,-5220,90,-110,2]
[null,null,null,null,null,null,null,null,null,null,null,null,null,0,-110,-5330,90,-110,2]
[null,null,null,null,null,null,null,null,null,null,null,null,null,0,-110,-5440,90,-110,2]
[null,null,null,null,null,null,null,null,null,null,null,null,null,1,90,-5350,90,-110,2]
[null,null,null,null,null,null,null,null,null,null,null,null,null,0,-110,-5460,90,-110,2]
[null,null,null,null,null,null,null,null,null,null,null,null,null,1,90,-5370,90,-110,2]
[null,null,null,null,null,null,null,null,null,null,null,null,null,1,90,-5280,90,-110,2]
[null,null,null,null,null,null,null,null,null,null,null,null,null,1,90,-5190,90,-110,2]
[null,null,null,null,null,null,null,null,null,null,null,null,null,{"$f":"INT(MOD(RAND(),2)*S455)","v":0},{"$f":"IF(N455,Q455,R455)","v":-110},-5300,90,-110,2]
[null,null,null,null,null,null,null,null,null,null,null,null,null,0,-110,{"$f":"O456+P455","v":-5410},{"$f":"Q455","v":90},-110,2]
[null,null,null,null,null,null,null,null,null,null,null,null,null,1,90,-5320,90,-110,2]
[null,null,null,null,null,null,null,null,null,null,null,null,null,0,-110,-5430,90,-110,2]
[null,null,null,null,null,null,null,null,null,null,null,null,null,0,-110,-5540,90,-110,2]
[null,null,null,null,null,null,null,null,null,null,null,null,null,1,90,-5450,90,-110,2]
[null,null,null,null,null,null,null,null,null,null,null,null,null,0,-110,-5560,90,-110,2]
[null,null,null,null,null,null,null,null,null,null,null,null,null,1,90,-5470,90,-110,2]
[null,null,null,null,null,null,null,null,null,null,null,null,null,1,90,-5380,90,-110,2]
[null,null,null,null,null,null,null,null,null,null,null,null,null,1,90,-5290,90,-110,2]
[null,null,null,null,null,null,null,null,null,null,null,null,null,0,-110,-5400,90,-110,2]
[null,null,null,null,null,null,null,null,null,null,null,null,null,0,-110,-5510,90,-110,2]
[null,null,null,null,null,null,null,null,null,null,null,null,null,1,90,-5420,90,-110,2]
[null,null,null,null,null,null,null,null,null,null,null,null,null,0,-110,-5530,90,-110,2]
[null,null,null,null,null,null,null,null,null,null,null,null,null,0,-110,-5640,90,-110,2]
[null,null,null,null,null,null,null,null,null,null,null,null,null,1,90,-5550,90,-110,2]
[null,null,null,null,null,null,null,null,null,null,null,null,null,1,90,-5460,90,-110,2]
[null,null,null,null,null,null,null,null,null,null,null,null,null,0,-110,-5570,90,-110,2]
[null,null,null,null,null,null,null,null,null,null,null,null,null,0,-110,-5680,90,-110,2]
[null,null,null,null,null,null,null,null,null,null,null,null,null,0,-110,-5790,90,-110,2]
[null,null,null,null,null,null,null,null,null,null,null,null,null,1,90,-5700,90,-110,2]
[null,null,null,null,null,null,null,null,null,null,null,null,null,0,-110,-5810,90,-110,2]
[null,null,null,null,null,null,null,null,null,null,null,null,null,1,90,-5720,90,-110,2]
[null,null,null,null,null,null,null,null,null,null,null,null,null,0,-110,-5830,90,-110,2]
[null,null,null,null,null,null,null,null,null,null,null,null,null,0,-110,-5940,90,-110,2]
[null,null,null,null,null,null,null,null,null,null,null,null,null,0,-110,-6050,90,-110,2]
[null,null,null,null,null,null,null,null,null,null,null,null,null,1,90,-5960,90,-110,2]
[null,null,null,null,null,null,null,null,null,null,null,null,null,1,90,-5870,90,-110,2]
[null,null,null,null,null,null,null,null,null,null,null,null,null,1,90,-5780,90,-110,2]
[null,null,null,null,null,null,null,null,null,null,null,null,null,0,-110,-5890,90,-110,2]
[null,null,null,null,null,null,null,null,null,null,null,null,null,1,90,-5800,90,-110,2]
[null,null,null,null,null,null,null,null,null,null,null,null,null,0,-110,-5910,90,-110,2]
[null,null,null,null,null,null,null,null,null,null,null,null,null,1,90,-5820,90,-110,2]
[null,null,null,null,null,null,null,null,null,null,null,null,null,0,-110,-5930,90,-110,2]
[null,null,null,null,null,null,null,null,null,null,null,null,null,1,90,-5840,90,-110,2]
[null,null,null,null,null,null,null,null,null,null,null,null,null,0,-110,-5950,90,-110,2]
[null,null,null,null,null,null,null,null,null,null,null,null,null,0,-110,-6060,90,-110,2]
[null,null,null,null,null,null,null,null,null,null,null,null,null,1,90,-5970,90,-110,2]
[null,null,null,null,null,null,null,null,null,null,null,null,null,0,-110,-6080,90,-110,2]
[null,null,null,null,null,null,null,null,null,null,null,null,null,1,90,-5990,90,-110,2]
[null,null,null,null,null,null,null,null,null,null,null,null,null,0,-110,-6100,90,-110,2]
[null,null,null,null,null,null,null,null,null,null,null,null,null,1,90,-6010,90,-110,2]
[null,null,null,null,null,null,null,null,null,null,null,null,null,1,90,-5920,90,-110,2]
[null,null,null,null,null,null,null,null,null,null,null,null,null,0,-110,-6030,90,-110,2]
[null,null,null,null,null,null,null,null,null,null,null,null,null,0,-110,-6140,90,-110,2]
[null,null,null,null,null,null,null,null,null,null,null,null,null,0,-110,-6250,90,-110,2]
[null,null,null,null,null,null,null,null,null,null,null,null,null,0,-110,-6360,90,-110,2]
[null,null,null,null,null,null,null,null,null,null,null,null,null,1,90,-6270,90,-110,2]
[null,null,null,null,null,null,null,null,null,null,null,null,null,0,-110,-6380,90,-110,2]
[null,null,null,null,null,null,null,null,null,null,null,null,null,1,90,-6290,90,-110,2]
[null,null,null,null,null,null,null,null,null,null,null,null,null,1,90,-6200,90,-110,2]
[null,null,null,null,null,null,null,null,null,null,null,null,null,1,90,-6110,90,-110,2]
[null,null,null,null,null,null,null,null,null,null,null,null,null,1,90,-6020,90,-110,2]
[null,null,null,null,null,null,null,null,null,null,null,null,null,1,90,-5930,90,-110,2]
[null,null,null,null,null,null,null,null,null,null,null,null,null,0,-110,-6040,90,-110,2]
[null,null,null,null,null,null,null,null,null,null,null,null,null,1,90,-5950,90,-110,2]
[null,null,null,null,null,null,null,null,null,null,null,null,null,0,-110,-6060,90,-110,2]
[null,null,null,null,null,null,null,null,null,null,null,null,null,1,90,-5970,90,-110,2]
[null,null,null,null,null,null,null,null,null,null,null,null,null,1,90,-5880,90,-110,2]
[null,null,null,null,null,null,null,null,null,null,null,null,null,0,-110,-5990,90,-110,2]
[null,null,null,null,null,null,null,null,null,null,null,null,null,0,-110,-6100,90,-110,2]
[null,null,null,null,null,null,null,null,null,null,null,null,null,0,-110,-6210,90,-110,2]
[null,null,null,null,null,null,null,null,null,null,null,null,null,1,90,-6120,90,-110,2]
[null,null,null,null,null,null,null,null,null,null,null,null,null,1,90,-6030,90,-110,2]
[null,null,null,null,null,null,null,null,null,null,null,null,null,{"$f":"INT(MOD(RAND(),2)*S519)","v":0},{"$f":"IF(N519,Q519,R519)","v":-110},-6140,90,-110,2]
[null,null,null,null,null,null,null,null,null,null,null,null,null,1,90,{"$f":"O520+P519","v":-6050},{"$f":"Q519","v":90},-110,2]
[null,null,null,null,null,null,null,null,null,null,null,null,null,0,-110,-6160,90,-110,2]
[null,null,null,null,null,null,null,null,null,null,null,null,null,0,-110,-6270,90,-110,2]
[null,null,null,null,null,null,null,null,null,null,null,null,null,1,90,-6180,90,-110,2]
[null,null,null,null,null,null,null,null,null,null,null,null,null,1,90,-6090,90,-110,2]
[null,null,null,null,null,null,null,null,null,null,null,null,null,1,90,-6000,90,-110,2]
[null,null,null,null,null,null,null,null,null,null,null,null,null,0,-110,-6110,90,-110,2]
[null,null,null,null,null,null,null,null,null,null,null,null,null,1,90,-6020,90,-110,2]
[null,null,null,null,null,null,null,null,null,null,null,null,null,0,-110,-6130,90,-110,2]
[null,null,null,null,null,null,null,null,null,null,null,null,null,0,-110,-6240,90,-110,2]
[null,null,null,null,null,null,null,null,null,null,null,null,null,1,90,-6150,90,-110,2]
[null,null,null,null,null,null,null,null,null,null,null,null,null,1,90,-6060,90,-110,2]
[null,null,null,null,null,null,null,null,null,null,null,null,null,1,90,-5970,90,-110,2]
[null,null,null,null,null,null,null,null,null,null,null,null,null,1,90,-5880,90,-110,2]
[null,null,null,null,null,null,null,null,null,null,null,null,null,1,90,-5790,90,-110,2]
[null,null,null,null,null,null,null,null,null,null,null,null,null,1,90,-5700,90,-110,2]
[null,null,null,null,null,null,null,null,null,null,null,null,null,0,-110,-5810,90,-110,2]
[null,null,null,null,null,null,null,null,null,null,null,null,null,1,90,-5720,90,-110,2]
[null,null,null,null,null,null,null,null,null,null,null,null,null,0,-110,-5830,90,-110,2]
[null,null,null,null,null,null,null,null,null,null,null,null,null,0,-110,-5940,90,-110,2]
[null,null,null,null,null,null,null,null,null,null,null,null,null,1,90,-5850,90,-110,2]
[null,null,null,null,null,null,null,null,null,null,null,null,null,1,90,-5760,90,-110,2]
[null,null,null,null,null,null,null,null,null,null,null,null,null,1,90,-5670,90,-110,2]
[null,null,null,null,null,null,null,null,null,null,null,null,null,0,-110,-5780,90,-110,2]
[null,null,null,null,null,null,null,null,null,null,null,null,null,1,90,-5690,90,-110,2]
[null,null,null,null,null,null,null,null,null,null,null,null,null,1,90,-5600,90,-110,2]
[null,null,null,null,null,null,null,null,null,null,null,null,null,0,-110,-5710,90,-110,2]
[null,null,null,null,null,null,null,null,null,null,null,null,null,1,90,-5620,90,-110,2]
[null,null,null,null,null,null,null,null,null,null,null,null,null,1,90,-5530,90,-110,2]
[null,null,null,null,null,null,null,null,null,null,null,null,null,0,-110,-5640,90,-110,2]
[null,null,null,null,null,null,null,null,null,null,null,null,null,1,90,-5550,90,-110,2]
[null,null,null,null,null,null,null,null,null,null,null,null,null,0,-110,-5660,90,-110,2]
[null,null,null,null,null,null,null,null,null,null,null,null,null,0,-110,-5770,90,-110,2]
[null,null,null,null,null,null,null,null,null,null,null,null,null,0,-110,-5880,90,-110,2]
[null,null,null,null,null,null,null,null,null,null,null,null,null,1,90,-5790,90,-110,2]
[null,null,null,null,null,null,null,null,null,null,null,null,null,1,90,-5700,90,-110,2]
[null,null,null,null,null,null,null,null,null,null,null,null,null,1,90,-5610,90,-110,2]
[null,null,null,null,null,null,null,null,null,null,null,null,null,0,-110,-5720,90,-110,2]
[null,null,null,null,null,null,null,null,null,null,null,null,null,1,90,-5630,90,-110,2]
[null,null,null,null,null,null,null,null,null,null,null,null,null,1,90,-5540,90,-110,2]
[null,null,null,null,null,null,null,null,null,null,null,null,null,0,-110,-5650,90,-110,2]
[null,null,null,null,null,null,null,null,null,null,null,null,null,0,-110,-5760,90,-110,2]
[null,null,null,null,null,null,null,null,null,null,null,null,null,0,-110,-5870,90,-110,2]
[null,null,null,null,null,null,null,null,null,null,null,null,null,0,-110,-5980,90,-110,2]
[null,null,null,null,null,null,null,null,null,null,null,null,null,0,-110,-6090,90,-110,2]
[null,null,null,null,null,null,null,null,null,null,null,null,null,1,90,-6000,90,-110,2]
[null,null,null,null,null,null,null,null,null,null,null,null,null,0,-110,-6110,90,-110,2]
[null,null,null,null,null,null,null,null,null,null,null,null,null,1,90,-6020,90,-110,2]
[null,null,null,null,null,null,null,null,null,null,null,null,null,0,-110,-6130,90,-110,2]
[null,null,null,null,null,null,null,null,null,null,null,null,null,1,90,-6040,90,-110,2]
[null,null,null,null,null,null,null,null,null,null,null,null,null,0,-110,-6150,90,-110,2]
[null,null,null,null,null,null,null,null,null,null,null,null,null,1,90,-6060,90,-110,2]
[null,null,null,null,null,null,null,null,null,null,null,null,null,0,-110,-6170,90,-110,2]
[null,null,null,null,null,null,null,null,null,null,null,null,null,1,90,-6080,90,-110,2]
[null,null,null,null,null,null,null,null,null,null,null,null,null,0,-110,-6190,90,-110,2]
[null,null,null,null,null,null,null,null,null,null,null,null,null,1,90,-6100,90,-110,2]
[null,null,null,null,null,null,null,null,null,null,null,null,null,1,90,-6010,90,-110,2]
[null,null,null,null,null,null,null,null,null,null,null,null,null,1,90,-5920,90,-110,2]
[null,null,null,null,null,null,null,null,null,null,null,null,null,0,-110,-6030,90,-110,2]
[null,null,null,null,null,null,null,null,null,null,null,null,null,1,90,-5940,90,-110,2]
[null,null,null,null,null,null,null,null,null,null,null,null,null,1,90,-5850,90,-110,2]
[null,null,null,null,null,null,null,null,null,null,null,null,null,0,-110,-5960,90,-110,2]
[null,null,null,null,null,null,null,null,null,null,null,null,null,0,-110,-6070,90,-110,2]
[null,null,null,null,null,null,null,null,null,null,null,null,null,{"$f":"INT(MOD(RAND(),2)*S583)","v":0},{"$f":"IF(N583,Q583,R583)","v":-110},-6180,90,-110,2]
[null,null,null,null,null,null,null,null,null,null,null,null,null,0,-110,{"$f":"O584+P583","v":-6290},{"$f":"Q583","v":90},-110,2]
[null,null,null,null,null,null,null,null,null,null,null,null,null,1,90,-6200,90,-110,2]
[null,null,null,null,null,null,null,null,null,null,null,null,null,0,-110,-6310,90,-110,2]
[null,null,null,null,null,null,null,null,null,null,null,null,null,1,90,-6220,90,-110,2]
[null,null,null,null,null,null,null,null,null,null,null,null,null,0,-110,-6330,90,-110,2]
[null,null,null,null,null,null,null,null,null,null,null,null,null,1,90,-6240,90,-110,2]
[null,null,null,null,null,null,null,null,null,null,null,null,null,0,-110,-6350,90,-110,2]
[null,null,null,null,null,null,null,null,null,null,null,null,null,1,90,-6260,90,-110,2]
[null,null,null,null,null,null,null,null,null,null,null,null,null,1,90,-6170,90,-110,2]
[null,null,null,null,null,null,null,null,null,null,null,null,null,0,-110,-6280,90,-110,2]
[null,null,null,null,null,null,null,null,null,null,null,null,null,1,90,-6190,90,-110,2]
[null,null,null,null,null,null,null,null,null,null,null,null,null,0,-110,-6300,90,-110,2]
[null,null,null,null,null,null,null,null,null,null,null,null,null,0,-110,-6410,90,-110,2]
[null,null,null,null,null,null,null,null,null,null,null,null,null,1,90,-6320,90,-110,2]
[null,null,null,null,null,null,null,null,null,null,null,null,null,1,90,-6230,90,-110,2]
[null,null,null,null,null,null,null,null,null,null,null,null,null,0,-110,-6340,90,-110,2]
[null,null,null,null,null,null,null,null,null,null,null,null,null,1,90,-6250,90,-110,2]
[null,null,null,null,null,null,null,null,null,null,null,null,null,1,90,-6160,90,-110,2]
[null,null,null,null,null,null,null,null,null,null,null,null,null,0,-110,-6270,90,-110,2]
[null,null,null,null,null,null,null,null,null,null,null,null,null,1,90,-6180,90,-110,2]
[null,null,null,null,null,null,null,null,null,null,null,null,null,1,90,-6090,90,-110,2]
[null,null,null,null,null,null,null,null,null,null,null,null,null,1,90,-6000,90,-110,2]
[null,null,null,null,null,null,null,null,null,null,null,null,null,0,-110,-6110,90,-110,2]
[null,null,null,null,null,null,null,null,null,null,null,null,null,0,-110,-6220,90,-110,2]
[null,null,null,null,null,null,null,null,null,null,null,null,null,0,-110,-6330,90,-110,2]
[null,null,null,null,null,null,null,null,null,null,null,null,null,0,-110,-6440,90,-110,2]
[null,null,null,null,null,null,null,null,null,null,null,null,null,1,90,-6350,90,-110,2]
[null,null,null,null,null,null,null,null,null,null,null,null,null,1,90,-6260,90,-110,2]
[null,null,null,null,null,null,null,null,null,null,null,null,null,0,-110,-6370,90,-110,2]
[null,null,null,null,null,null,null,null,null,null,null,null,null,1,90,-6280,90,-110,2]
[null,null,null,null,null,null,null,null,null,null,null,null,null,0,-110,-6390,90,-110,2]
[null,null,null,null,null,null,null,null,null,null,null,null,null,0,-110,-6500,90,-110,2]
[null,null,null,null,null,null,null,null,null,null,null,null,null,1,90,-6410,90,-110,2]
[null,null,null,null,null,null,null,null,null,null,null,null,null,1,90,-6320,90,-110,2]
[null,null,null,null,null,null,null,null,null,null,null,null,null,0,-110,-6430,90,-110,2]
[null,null,null,null,null,null,null,null,null,null,null,null,null,1,90,-6340,90,-110,2]
[null,null,null,null,null,null,null,null,null,null,null,null,null,1,90,-6250,90,-110,2]
[null,null,null,null,null,null,null,null,null,null,null,null,null,0,-110,-6360,90,-110,2]
[null,null,null,null,null,null,null,null,null,null,null,null,null,1,90,-6270,90,-110,2]
[null,null,null,null,null,null,null,null,null,null,null,null,null,1,90,-6180,90,-110,2]
[null,null,null,null,null,null,null,null,null,null,null,null,null,1,90,-6090,90,-110,2]
[null,null,null,null,null,null,null,null,null,null,null,null,null,1,90,-6000,90,-110,2]
[null,null,null,null,null,null,null,null,null,null,null,null,null,0,-110,-6110,90,-110,2]
[null,null,null,null,null,null,null,null,null,null,null,null,null,1,90,-6020,90,-110,2]
[null,null,null,null,null,null,null,null,null,null,null,null,null,0,-110,-6130,90,-110,2]
[null,null,null,null,null,null,null,null,null,null,null,null,null,1,90,-6040,90,-110,2]
[null,null,null,null,null,null,null,null,null,null,null,null,null,1,90,-5950,90,-110,2]
[null,null,null,null,null,null,null,null,null,null,null,null,null,1,90,-5860,90,-110,2]
[null,null,null,null,null,null,null,null,null,null,null,null,null,1,90,-5770,90,-110,2]
[null,null,null,null,null,null,null,null,null,null,null,null,null,1,90,-5680,90,-110,2]
[null,null,null,null,null,null,null,null,null,null,null,null,null,0,-110,-5790,90,-110,2]
[null,null,null,null,null,null,null,null,null,null,null,null,null,0,-110,-5900,90,-110,2]
[null,null,null,null,null,null,null,null,null,null,null,null,null,1,90,-5810,90,-110,2]
[null,null,null,null,null,null,null,null,null,null,null,null,null,0,-110,-5920,90,-110,2]
[null,null,null,null,null,null,null,null,null,null,null,null,null,0,-110,-6030,90,-110,2]
[null,null,null,null,null,null,null,null,null,null,null,null,null,1,90,-5940,90,-110,2]
[null,null,null,null,null,null,null,null,null,null,null,null,null,0,-110,-6050,90,-110,2]
[null,null,null,null,null,null,null,null,null,null,null,null,null,0,-110,-6160,90,-110,2]
[null,null,null,null,null,null,null,null,null,null,null,null,null,1,90,-6070,90,-110,2]
[null,null,null,null,null,null,null,null,null,null,null,null,null,1,90,-5980,90,-110,2]
[null,null,null,null,null,null,null,null,null,null,null,null,null,0,-110,-6090,90,-110,2]
[null,null,null,null,null,null,null,null,null,null,null,null,null,0,-110,-6200,90,-110,2]
[null,null,null,null,null,null,null,null,null,null,null,null,null,0,-110,-6310,90,-110,2]
[null,null,null,null,null,null,null,null,null,null,null,null,null,{"$f":"INT(MOD(RAND(),2)*S647)","v":1},{"$f":"IF(N647,Q647,R647)","v":90},-6220,90,-110,2]
[null,null,null,null,null,null,null,null,null,null,null,null,null,0,-110,{"$f":"O648+P647","v":-6330},{"$f":"Q647","v":90},-110,2]
[null,null,null,null,null,null,null,null,null,null,null,null,null,0,-110,-6440,90,-110,2]
[null,null,null,null,null,null,null,null,null,null,null,null,null,0,-110,-6550,90,-110,2]
[null,null,null,null,null,null,null,null,null,null,null,null,null,0,-110,-6660,90,-110,2]
[null,null,null,null,null,null,null,null,null,null,null,null,null,0,-110,-6770,90,-110,2]
[null,null,null,null,null,null,null,null,null,null,null,null,null,1,90,-6680,90,-110,2]
[null,null,null,null,null,null,null,null,null,null,null,null,null,0,-110,-6790,90,-110,2]
[null,null,null,null,null,null,null,null,null,null,null,null,null,1,90,-6700,90,-110,2]
[null,null,null,null,null,null,null,null,null,null,null,null,null,0,-110,-6810,90,-110,2]
[null,null,null,null,null,null,null,null,null,null,null,null,null,0,-110,-6920,90,-110,2]
[null,null,null,null,null,null,null,null,null,null,null,null,null,1,90,-6830,90,-110,2]
[null,null,null,null,null,null,null,null,null,null,null,null,null,1,90,-6740,90,-110,2]
[null,null,null,null,null,null,null,null,null,null,null,null,null,0,-110,-6850,90,-110,2]
[null,null,null,null,null,null,null,null,null,null,null,null,null,0,-110,-6960,90,-110,2]
[null,null,null,null,null,null,null,null,null,null,null,null,null,1,90,-6870,90,-110,2]
[null,null,null,null,null,null,null,null,null,null,null,null,null,1,90,-6780,90,-110,2]
[null,null,null,null,null,null,null,null,null,null,null,null,null,0,-110,-6890,90,-110,2]
[null,null,null,null,null,null,null,null,null,null,null,null,null,0,-110,-7000,90,-110,2]
[null,null,null,null,null,null,null,null,null,null,null,null,null,0,-110,-7110,90,-110,2]
[null,null,null,null,null,null,null,null,null,null,null,null,null,1,90,-7020,90,-110,2]
[null,null,null,null,null,null,null,null,null,null,null,null,null,1,90,-6930,90,-110,2]
[null,null,null,null,null,null,null,null,null,null,null,null,null,1,90,-6840,90,-110,2]
[null,null,null,null,null,null,null,null,null,null,null,null,null,0,-110,-6950,90,-110,2]
[null,null,null,null,null,null,null,null,null,null,null,null,null,0,-110,-7060,90,-110,2]
[null,null,null,null,null,null,null,null,null,null,null,null,null,1,90,-6970,90,-110,2]
[null,null,null,null,null,null,null,null,null,null,null,null,null,1,90,-6880,90,-110,2]
[null,null,null,null,null,null,null,null,null,null,null,null,null,0,-110,-6990,90,-110,2]
[null,null,null,null,null,null,null,null,null,null,null,null,null,1,90,-6900,90,-110,2]
[null,null,null,null,null,null,null,null,null,null,null,null,null,1,90,-6810,90,-110,2]
[null,null,null,null,null,null,null,null,null,null,null,null,null,0,-110,-6920,90,-110,2]
[null,null,null,null,null,null,null,null,null,null,null,null,null,0,-110,-7030,90,-110,2]
[null,null,null,null,null,null,null,null,null,null,null,null,null,1,90,-6940,90,-110,2]
[null,null,null,null,null,null,null,null,null,null,null,null,null,0,-110,-7050,90,-110,2]
[null,null,null,null,null,null,null,null,null,null,null,null,null,1,90,-6960,90,-110,2]
[null,null,null,null,null,null,null,null,null,null,null,null,null,0,-110,-7070,90,-110,2]
[null,null,null,null,null,null,null,null,null,null,null,null,null,1,90,-6980,90,-110,2]
[null,null,null,null,null,null,null,null,null,null,null,null,null,0,-110,-7090,90,-110,2]
[null,null,null,null,null,null,null,null,null,null,null,null,null,0,-110,-7200,90,-110,2]
[null,null,null,null,null,null,null,null,null,null,null,null,null,0,-110,-7310,90,-110,2]
[null,null,null,null,null,null,null,null,null,null,null,null,null,1,90,-7220,90,-110,2]
[null,null,null,null,null,null,null,null,null,null,null,null,null,1,90,-7130,90,-110,2]
[null,null,null,null,null,null,null,null,null,null,null,null,null,0,-110,-7240,90,-110,2]
[null,null,null,null,null,null,null,null,null,null,null,null,null,1,90,-7150,90,-110,2]
[null,null,null,null,null,null,null,null,null,null,null,null,null,0,-110,-7260,90,-110,2]
[null,null,null,null,null,null,null,null,null,null,null,null,null,0,-110,-7370,90,-110,2]
[null,null,null,null,null,null,null,null,null,null,null,null,null,0,-110,-7480,90,-110,2]
[null,null,null,null,null,null,null,null,null,null,null,null,null,1,90,-7390,90,-110,2]
[null,null,null,null,null,null,null,null,null,null,null,null,null,1,90,-7300,90,-110,2]
[null,null,null,null,null,null,null,null,null,null,null,null,null,0,-110,-7410,90,-110,2]
[null,null,null,null,null,null,null,null,null,null,null,null,null,0,-110,-7520,90,-110,2]
[null,null,null,null,null,null,null,null,null,null,null,null,null,0,-110,-7630,90,-110,2]
[null,null,null,null,null,null,null,null,null,null,null,null,null,0,-110,-7740,90,-110,2]
[null,null,null,null,null,null,null,null,null,null,null,null,null,1,90,-7650,90,-110,2]
[null,null,null,null,null,null,null,null,null,null,null,null,null,1,90,-7560,90,-110,2]
[null,null,null,null,null,null,null,null,null,null,null,null,null,1,90,-7470,90,-110,2]
[null,null,null,null,null,null,null,null,null,null,null,null,null,0,-110,-7580,90,-110,2]
[null,null,null,null,null,null,null,null,null,null,null,null,null,1,90,-7490,90,-110,2]
[null,null,null,null,null,null,null,null,null,null,null,null,null,0,-110,-7600,90,-110,2]
[null,null,null,null,null,null,null,null,null,null,null,null,null,0,-110,-7710,90,-110,2]
[null,null,null,null,null,null,null,null,null,null,null,null,null,1,90,-7620,90,-110,2]
[null,null,null,null,null,null,null,null,null,null,null,null,null,1,90,-7530,90,-110,2]
[null,null,null,null,null,null,null,null,null,null,null,null,null,0,-110,-7640,90,-110,2]
[null,null,null,null,null,null,null,null,null,null,null,null,null,0,-110,-7750,90,-110,2]
[null,null,null,null,null,null,null,null,null,null,null,null,null,{"$f":"INT(MOD(RAND(),2)*S711)","v":0},{"$f":"IF(N711,Q711,R711)","v":-110},-7860,90,-110,2]
[null,null,null,null,null,null,null,null,null,null,null,null,null,1,90,{"$f":"O712+P711","v":-7770},{"$f":"Q711","v":90},-110,2]
[null,null,null,null,null,null,null,null,null,null,null,null,null,0,-110,-7880,90,-110,2]
[null,null,null,null,null,null,null,null,null,null,null,null,null,1,90,-7790,90,-110,2]
[null,null,null,null,null,null,null,null,null,null,null,null,null,0,-110,-7900,90,-110,2]
[null,null,null,null,null,null,null,null,null,null,null,null,null,0,-110,-8010,90,-110,2]
[null,null,null,null,null,null,null,null,null,null,null,null,null,0,-110,-8120,90,-110,2]
[null,null,null,null,null,null,null,null,null,null,null,null,null,1,90,-8030,90,-110,2]
[null,null,null,null,null,null,null,null,null,null,null,null,null,0,-110,-8140,90,-110,2]
[null,null,null,null,null,null,null,null,null,null,null,null,null,1,90,-8050,90,-110,2]
[null,null,null,null,null,null,null,null,null,null,null,null,null,1,90,-7960,90,-110,2]
[null,null,null,null,null,null,null,null,null,null,null,null,null,1,90,-7870,90,-110,2]
[null,null,null,null,null,null,null,null,null,null,null,null,null,1,90,-7780,90,-110,2]
[null,null,null,null,null,null,null,null,null,null,null,null,null,0,-110,-7890,90,-110,2]
[null,null,null,null,null,null,null,null,null,null,null,null,null,0,-110,-8000,90,-110,2]
[null,null,null,null,null,null,null,null,null,null,null,null,null,0,-110,-8110,90,-110,2]
[null,null,null,null,null,null,null,null,null,null,null,null,null,1,90,-8020,90,-110,2]
[null,null,null,null,null,null,null,null,null,null,null,null,null,0,-110,-8130,90,-110,2]
[null,null,null,null,null,null,null,null,null,null,null,null,null,0,-110,-8240,90,-110,2]
[null,null,null,null,null,null,null,null,null,null,null,null,null,0,-110,-8350,90,-110,2]
[null,null,null,null,null,null,null,null,null,null,null,null,null,1,90,-8260,90,-110,2]
[null,null,null,null,null,null,null,null,null,null,null,null,null,1,90,-8170,90,-110,2]
[null,null,null,null,null,null,null,null,null,null,null,null,null,1,90,-8080,90,-110,2]
[null,null,null,null,null,null,null,null,null,null,null,null,null,0,-110,-8190,90,-110,2]
[null,null,null,null,null,null,null,null,null,null,null,null,null,1,90,-8100,90,-110,2]
[null,null,null,null,null,null,null,null,null,null,null,null,null,0,-110,-8210,90,-110,2]
[null,null,null,null,null,null,null,null,null,null,null,null,null,0,-110,-8320,90,-110,2]
[null,null,null,null,null,null,null,null,null,null,null,null,null,0,-110,-8430,90,-110,2]
[null,null,null,null,null,null,null,null,null,null,null,null,null,0,-110,-8540,90,-110,2]
[null,null,null,null,null,null,null,null,null,null,null,null,null,0,-110,-8650,90,-110,2]
[null,null,null,null,null,null,null,null,null,null,null,null,null,1,90,-8560,90,-110,2]
[null,null,null,null,null,null,null,null,null,null,null,null,null,0,-110,-8670,90,-110,2]
[null,null,null,null,null,null,null,null,null,null,null,null,null,0,-110,-8780,90,-110,2]
[null,null,null,null,null,null,null,null,null,null,null,null,null,1,90,-8690,90,-110,2]
[null,null,null,null,null,null,null,null,null,null,null,null,null,0,-110,-8800,90,-110,2]
[null,null,null,null,null,null,null,null,null,null,null,null,null,0,-110,-8910,90,-110,2]
[null,null,null,null,null,null,null,null,null,null,null,null,null,0,-110,-9020,90,-110,2]
[null,null,null,null,null,null,null,null,null,null,null,null,null,1,90,-8930,90,-110,2]
[null,null,null,null,null,null,null,null,null,null,null,null,null,1,90,-8840,90,-110,2]
[null,null,null,null,null,null,null,null,null,null,null,null,null,1,90,-8750,90,-110,2]
[null,null,null,null,null,null,null,null,null,null,null,null,null,1,90,-8660,90,-110,2]
[null,null,null,null,null,null,null,null,null,null,null,null,null,0,-110,-8770,90,-110,2]
[null,null,null,null,null,null,null,null,null,null,null,null,null,0,-110,-8880,90,-110,2]
[null,null,null,null,null,null,null,null,null,null,null,null,null,0,-110,-8990,90,-110,2]
[null,null,null,null,null,null,null,null,null,null,null,null,null,0,-110,-9100,90,-110,2]
[null,null,null,null,null,null,null,null,null,null,null,null,null,1,90,-9010,90,-110,2]
[null,null,null,null,null,null,null,null,null,null,null,null,null,1,90,-8920,90,-110,2]
[null,null,null,null,null,null,null,null,null,null,null,null,null,0,-110,-9030,90,-110,2]
[null,null,null,null,null,null,null,null,null,null,null,null,null,0,-110,-9140,90,-110,2]
[null,null,null,null,null,null,null,null,null,null,null,null,null,1,90,-9050,90,-110,2]
[null,null,null,null,null,null,null,null,null,null,null,null,null,0,-110,-9160,90,-110,2]
[null,null,null,null,null,null,null,null,null,null,null,null,null,1,90,-9070,90,-110,2]
[null,null,null,null,null,null,null,null,null,null,null,null,null,1,90,-8980,90,-110,2]
[null,null,null,null,null,null,null,null,null,null,null,null,null,0,-110,-9090,90,-110,2]
[null,null,null,null,null,null,null,null,null,null,null,null,null,1,90,-9000,90,-110,2]
[null,null,null,null,null,null,null,null,null,null,null,null,null,1,90,-8910,90,-110,2]
[null,null,null,null,null,null,null,null,null,null,null,null,null,1,90,-8820,90,-110,2]
[null,null,null,null,null,null,null,null,null,null,null,null,null,0,-110,-8930,90,-110,2]
[null,null,null,null,null,null,null,null,null,null,null,null,null,0,-110,-9040,90,-110,2]
[null,null,null,null,null,null,null,null,null,null,null,null,null,0,-110,-9150,90,-110,2]
[null,null,null,null,null,null,null,null,null,null,null,null,null,1,90,-9060,90,-110,2]
[null,null,null,null,null,null,null,null,null,null,null,null,null,0,-110,-9170,90,-110,2]
[null,null,null,null,null,null,null,null,null,null,null,null,null,0,-110,-9280,90,-110,2]
[null,null,null,null,null,null,null,null,null,null,null,null,null,0,-110,-9390,90,-110,2]
[null,null,null,null,null,null,null,null,null,null,null,null,null,{"$f":"INT(MOD(RAND(),2)*S775)","v":1},{"$f":"IF(N775,Q775,R775)","v":90},-9300,90,-110,2]
[null,null,null,null,null,null,null,null,null,null,null,null,null,1,90,{"$f":"O776+P775","v":-9210},{"$f":"Q775","v":90},-110,2]
[null,null,null,null,null,null,null,null,null,null,null,null,null,0,-110,-9320,90,-110,2]
[null,null,null,null,null,null,null,null,null,null,null,null,null,1,90,-9230,90,-110,2]
[null,null,null,null,null,null,null,null,null,null,null,null,null,0,-110,-9340,90,-110,2]
[null,null,null,null,null,null,null,null,null,null,null,null,null,0,-110,-9450,90,-110,2]
[null,null,null,null,null,null,null,null,null,null,null,null,null,1,90,-9360,90,-110,2]
[null,null,null,null,null,null,null,null,null,null,null,null,null,0,-110,-9470,90,-110,2]
[null,null,null,null,null,null,null,null,null,null,null,null,null,0,-110,-9580,90,-110,2]
[null,null,null,null,null,null,null,null,null,null,null,null,null,0,-110,-9690,90,-110,2]
[null,null,null,null,null,null,null,null,null,null,null,null,null,1,90,-9600,90,-110,2]
[null,null,null,null,null,null,null,null,null,null,null,null,null,1,90,-9510,90,-110,2]
[null,null,null,null,null,null,null,null,null,null,null,null,null,0,-110,-9620,90,-110,2]
[null,null,null,null,null,null,null,null,null,null,null,null,null,0,-110,-9730,90,-110,2]
[null,null,null,null,null,null,null,null,null,null,null,null,null,0,-110,-9840,90,-110,2]
[null,null,null,null,null,null,null,null,null,null,null,null,null,0,-110,-9950,90,-110,2]
[null,null,null,null,null,null,null,null,null,null,null,null,null,0,-110,-10060,90,-110,2]
[null,null,null,null,null,null,null,null,null,null,null,null,null,0,-110,-10170,90,-110,2]
[null,null,null,null,null,null,null,null,null,null,null,null,null,0,-110,-10280,90,-110,2]
[null,null,null,null,null,null,null,null,null,null,null,null,null,1,90,-10190,90,-110,2]
[null,null,null,null,null,null,null,null,null,null,null,null,null,0,-110,-10300,90,-110,2]
[null,null,null,null,null,null,null,null,null,null,null,null,null,1,90,-10210,90,-110,2]
[null,null,null,null,null,null,null,null,null,null,null,null,null,1,90,-10120,90,-110,2]
[null,null,null,null,null,null,null,null,null,null,null,null,null,1,90,-10030,90,-110,2]
[null,null,null,null,null,null,null,null,null,null,null,null,null,1,90,-9940,90,-110,2]
[null,null,null,null,null,null,null,null,null,null,null,null,null,0,-110,-10050,90,-110,2]
[null,null,null,null,null,null,null,null,null,null,null,null,null,0,-110,-10160,90,-110,2]
[null,null,null,null,null,null,null,null,null,null,null,null,null,0,-110,-10270,90,-110,2]
[null,null,null,null,null,null,null,null,null,null,null,null,null,1,90,-10180,90,-110,2]
[null,null,null,null,null,null,null,null,null,null,null,null,null,1,90,-10090,90,-110,2]
[null,null,null,null,null,null,null,null,null,null,null,null,null,0,-110,-10200,90,-110,2]
[null,null,null,null,null,null,null,null,null,null,null,null,null,1,90,-10110,90,-110,2]
[null,null,null,null,null,null,null,null,null,null,null,null,null,0,-110,-10220,90,-110,2]
[null,null,null,null,null,null,null,null,null,null,null,null,null,0,-110,-10330,90,-110,2]
[null,null,null,null,null,null,null,null,null,null,null,null,null,1,90,-10240,90,-110,2]
[null,null,null,null,null,null,null,null,null,null,null,null,null,0,-110,-10350,90,-110,2]
[null,null,null,null,null,null,null,null,null,null,null,null,null,1,90,-10260,90,-110,2]
[null,null,null,null,null,null,null,null,null,null,null,null,null,0,-110,-10370,90,-110,2]
[null,null,null,null,null,null,null,null,null,null,null,null,null,1,90,-10280,90,-110,2]
[null,null,null,null,null,null,null,null,null,null,null,null,null,0,-110,-10390,90,-110,2]
[null,null,null,null,null,null,null,null,null,null,null,null,null,0,-110,-10500,90,-110,2]
[null,null,null,null,null,null,null,null,null,null,null,null,null,0,-110,-10610,90,-110,2]
[null,null,null,null,null,null,null,null,null,null,null,null,null,1,90,-10520,90,-110,2]
[null,null,null,null,null,null,null,null,null,null,null,null,null,0,-110,-10630,90,-110,2]
[null,null,null,null,null,null,null,null,null,null,null,null,null,1,90,-10540,90,-110,2]
[null,null,null,null,null,null,null,null,null,null,null,null,null,1,90,-10450,90,-110,2]
[null,null,null,null,null,null,null,null,null,null,null,null,null,0,-110,-10560,90,-110,2]
[null,null,null,null,null,null,null,null,null,null,null,null,null,0,-110,-10670,90,-110,2]
[null,null,null,null,null,null,null,null,null,null,null,null,null,1,90,-10580,90,-110,2]
[null,null,null,null,null,null,null,null,null,null,null,null,null,1,90,-10490,90,-110,2]
[null,null,null,null,null,null,null,null,null,null,null,null,null,1,90,-10400,90,-110,2]
[null,null,null,null,null,null,null,null,null,null,null,null,null,1,90,-10310,90,-110,2]
[null,null,null,null,null,null,null,null,null,null,null,null,null,0,-110,-10420,90,-110,2]
[null,null,null,null,null,null,null,null,null,null,null,null,null,1,90,-10330,90,-110,2]
[null,null,null,null,null,null,null,null,null,null,null,null,null,0,-110,-10440,90,-110,2]
[null,null,null,null,null,null,null,null,null,null,null,null,null,1,90,-10350,90,-110,2]
[null,null,null,null,null,null,null,null,null,null,null,null,null,1,90,-10260,90,-110,2]
[null,null,null,null,null,null,null,null,null,null,null,null,null,0,-110,-10370,90,-110,2]
[null,null,null,null,null,null,null,null,null,null,null,null,null,1,90,-10280,90,-110,2]
[null,null,null,null,null,null,null,null,null,null,null,null,null,0,-110,-10390,90,-110,2]
[null,null,null,null,null,null,null,null,null,null,null,null,null,1,90,-10300,90,-110,2]
[null,null,null,null,null,null,null,null,null,null,null,null,null,1,90,-10210,90,-110,2]
[null,null,null,null,null,null,null,null,null,null,null,null,null,1,90,-10120,90,-110,2]
[null,null,null,null,null,null,null,null,null,null,null,null,null,1,90,-10030,90,-110,2]
[null,null,null,null,null,null,null,null,null,null,null,null,null,{"$f":"INT(MOD(RAND(),2)*S839)","v":0},{"$f":"IF(N839,Q839,R839)","v":-110},-10140,90,-110,2]
[null,null,null,null,null,null,null,null,null,null,null,null,null,0,-110,{"$f":"O840+P839","v":-10250},{"$f":"Q839","v":90},-110,2]
[null,null,null,null,null,null,null,null,null,null,null,null,null,0,-110,-10360,90,-110,2]
[null,null,null,null,null,null,null,null,null,null,null,null,null,0,-110,-10470,90,-110,2]
[null,null,null,null,null,null,null,null,null,null,null,null,null,0,-110,-10580,90,-110,2]
[null,null,null,null,null,null,null,null,null,null,null,null,null,0,-110,-10690,90,-110,2]
[null,null,null,null,null,null,null,null,null,null,null,null,null,1,90,-10600,90,-110,2]
[null,null,null,null,null,null,null,null,null,null,null,null,null,0,-110,-10710,90,-110,2]
[null,null,null,null,null,null,null,null,null,null,null,null,null,0,-110,-10820,90,-110,2]
[null,null,null,null,null,null,null,null,null,null,null,null,null,1,90,-10730,90,-110,2]
[null,null,null,null,null,null,null,null,null,null,null,null,null,1,90,-10640,90,-110,2]
[null,null,null,null,null,null,null,null,null,null,null,null,null,0,-110,-10750,90,-110,2]
[null,null,null,null,null,null,null,null,null,null,null,null,null,0,-110,-10860,90,-110,2]
[null,null,null,null,null,null,null,null,null,null,null,null,null,0,-110,-10970,90,-110,2]
[null,null,null,null,null,null,null,null,null,null,null,null,null,0,-110,-11080,90,-110,2]
[null,null,null,null,null,null,null,null,null,null,null,null,null,0,-110,-11190,90,-110,2]
[null,null,null,null,null,null,null,null,null,null,null,null,null,0,-110,-11300,90,-110,2]
[null,null,null,null,null,null,null,null,null,null,null,null,null,0,-110,-11410,90,-110,2]
[null,null,null,null,null,null,null,null,null,null,null,null,null,1,90,-11320,90,-110,2]
[null,null,null,null,null,null,null,null,null,null,null,null,null,0,-110,-11430,90,-110,2]
[null,null,null,null,null,null,null,null,null,null,null,null,null,1,90,-11340,90,-110,2]
[null,null,null,null,null,null,null,null,null,null,null,null,null,1,90,-11250,90,-110,2]
[null,null,null,null,null,null,null,null,null,null,null,null,null,1,90,-11160,90,-110,2]
[null,null,null,null,null,null,null,null,null,null,null,null,null,1,90,-11070,90,-110,2]
[null,null,null,null,null,null,null,null,null,null,null,null,null,0,-110,-11180,90,-110,2]
[null,null,null,null,null,null,null,null,null,null,null,null,null,1,90,-11090,90,-110,2]
[null,null,null,null,null,null,null,null,null,null,null,null,null,0,-110,-11200,90,-110,2]
[null,null,null,null,null,null,null,null,null,null,null,null,null,1,90,-11110,90,-110,2]
[null,null,null,null,null,null,null,null,null,null,null,null,null,1,90,-11020,90,-110,2]
[null,null,null,null,null,null,null,null,null,null,null,null,null,0,-110,-11130,90,-110,2]
[null,null,null,null,null,null,null,null,null,null,null,null,null,1,90,-11040,90,-110,2]
[null,null,null,null,null,null,null,null,null,null,null,null,null,1,90,-10950,90,-110,2]
[null,null,null,null,null,null,null,null,null,null,null,null,null,0,-110,-11060,90,-110,2]
[null,null,null,null,null,null,null,null,null,null,null,null,null,0,-110,-11170,90,-110,2]
[null,null,null,null,null,null,null,null,null,null,null,null,null,0,-110,-11280,90,-110,2]
[null,null,null,null,null,null,null,null,null,null,null,null,null,0,-110,-11390,90,-110,2]
[null,null,null,null,null,null,null,null,null,null,null,null,null,1,90,-11300,90,-110,2]
[null,null,null,null,null,null,null,null,null,null,null,null,null,1,90,-11210,90,-110,2]
[null,null,null,null,null,null,null,null,null,null,null,null,null,0,-110,-11320,90,-110,2]
[null,null,null,null,null,null,null,null,null,null,null,null,null,0,-110,-11430,90,-110,2]
[null,null,null,null,null,null,null,null,null,null,null,null,null,0,-110,-11540,90,-110,2]
[null,null,null,null,null,null,null,null,null,null,null,null,null,1,90,-11450,90,-110,2]
[null,null,null,null,null,null,null,null,null,null,null,null,null,0,-110,-11560,90,-110,2]
[null,null,null,null,null,null,null,null,null,null,null,null,null,1,90,-11470,90,-110,2]
[null,null,null,null,null,null,null,null,null,null,null,null,null,1,90,-11380,90,-110,2]
[null,null,null,null,null,null,null,null,null,null,null,null,null,1,90,-11290,90,-110,2]
[null,null,null,null,null,null,null,null,null,null,null,null,null,0,-110,-11400,90,-110,2]
[null,null,null,null,null,null,null,null,null,null,null,null,null,0,-110,-11510,90,-110,2]
[null,null,null,null,null,null,null,null,null,null,null,null,null,1,90,-11420,90,-110,2]
[null,null,null,null,null,null,null,null,null,null,null,null,null,1,90,-11330,90,-110,2]
[null,null,null,null,null,null,null,null,null,null,null,null,null,0,-110,-11440,90,-110,2]
[null,null,null,null,null,null,null,null,null,null,null,null,null,1,90,-11350,90,-110,2]
[null,null,null,null,null,null,null,null,null,null,null,null,null,1,90,-11260,90,-110,2]
[null,null,null,null,null,null,null,null,null,null,null,null,null,1,90,-11170,90,-110,2]
[null,null,null,null,null,null,null,null,null,null,null,null,null,1,90,-11080,90,-110,2]
[null,null,null,null,null,null,null,null,null,null,null,null,null,0,-110,-11190,90,-110,2]
[null,null,null,null,null,null,null,null,null,null,null,null,null,1,90,-11100,90,-110,2]
[null,null,null,null,null,null,null,null,null,null,null,null,null,0,-110,-11210,90,-110,2]
[null,null,null,null,null,null,null,null,null,null,null,null,null,1,90,-11120,90,-110,2]
[null,null,null,null,null,null,null,null,null,null,null,null,null,1,90,-11030,90,-110,2]
[null,null,null,null,null,null,null,null,null,null,null,null,null,1,90,-10940,90,-110,2]
[null,null,null,null,null,null,null,null,null,null,null,null,null,1,90,-10850,90,-110,2]
[null,null,null,null,null,null,null,null,null,null,null,null,null,0,-110,-10960,90,-110,2]
[null,null,null,null,null,null,null,null,null,null,null,null,null,0,-110,-11070,90,-110,2]
[null,null,null,null,null,null,null,null,null,null,null,null,null,{"$f":"INT(MOD(RAND(),2)*S903)","v":1},{"$f":"IF(N903,Q903,R903)","v":90},-10980,90,-110,2]
[null,null,null,null,null,null,null,null,null,null,null,null,null,1,90,{"$f":"O904+P903","v":-10890},{"$f":"Q903","v":90},-110,2]
[null,null,null,null,null,null,null,null,null,null,null,null,null,0,-110,-11000,90,-110,2]
[null,null,null,null,null,null,null,null,null,null,null,null,null,1,90,-10910,90,-110,2]
[null,null,null,null,null,null,null,null,null,null,null,null,null,1,90,-10820,90,-110,2]
[null,null,null,null,null,null,null,null,null,null,null,null,null,0,-110,-10930,90,-110,2]
[null,null,null,null,null,null,null,null,null,null,null,null,null,0,-110,-11040,90,-110,2]
[null,null,null,null,null,null,null,null,null,null,null,null,null,0,-110,-11150,90,-110,2]
[null,null,null,null,null,null,null,null,null,null,null,null,null,1,90,-11060,90,-110,2]
[null,null,null,null,null,null,null,null,null,null,null,null,null,1,90,-10970,90,-110,2]
[null,null,null,null,null,null,null,null,null,null,null,null,null,0,-110,-11080,90,-110,2]
[null,null,null,null,null,null,null,null,null,null,null,null,null,1,90,-10990,90,-110,2]
[null,null,null,null,null,null,null,null,null,null,null,null,null,0,-110,-11100,90,-110,2]
[null,null,null,null,null,null,null,null,null,null,null,null,null,0,-110,-11210,90,-110,2]
[null,null,null,null,null,null,null,null,null,null,null,null,null,0,-110,-11320,90,-110,2]
[null,null,null,null,null,null,null,null,null,null,null,null,null,0,-110,-11430,90,-110,2]
[null,null,null,null,null,null,null,null,null,null,null,null,null,1,90,-11340,90,-110,2]
[null,null,null,null,null,null,null,null,null,null,null,null,null,1,90,-11250,90,-110,2]
[null,null,null,null,null,null,null,null,null,null,null,null,null,1,90,-11160,90,-110,2]
[null,null,null,null,null,null,null,null,null,null,null,null,null,0,-110,-11270,90,-110,2]
[null,null,null,null,null,null,null,null,null,null,null,null,null,0,-110,-11380,90,-110,2]
[null,null,null,null,null,null,null,null,null,null,null,null,null,0,-110,-11490,90,-110,2]
[null,null,null,null,null,null,null,null,null,null,null,null,null,1,90,-11400,90,-110,2]
[null,null,null,null,null,null,null,null,null,null,null,null,null,1,90,-11310,90,-110,2]
[null,null,null,null,null,null,null,null,null,null,null,null,null,1,90,-11220,90,-110,2]
[null,null,null,null,null,null,null,null,null,null,null,null,null,0,-110,-11330,90,-110,2]
[null,null,null,null,null,null,null,null,null,null,null,null,null,1,90,-11240,90,-110,2]
[null,null,null,null,null,null,null,null,null,null,null,null,null,0,-110,-11350,90,-110,2]
[null,null,null,null,null,null,null,null,null,null,null,null,null,0,-110,-11460,90,-110,2]
[null,null,null,null,null,null,null,null,null,null,null,null,null,1,90,-11370,90,-110,2]
[null,null,null,null,null,null,null,null,null,null,null,null,null,1,90,-11280,90,-110,2]
[null,null,null,null,null,null,null,null,null,null,null,null,null,1,90,-11190,90,-110,2]
[null,null,null,null,null,null,null,null,null,null,null,null,null,1,90,-11100,90,-110,2]
[null,null,null,null,null,null,null,null,null,null,null,null,null,0,-110,-11210,90,-110,2]
[null,null,null,null,null,null,null,null,null,null,null,null,null,0,-110,-11320,90,-110,2]
[null,null,null,null,null,null,null,null,null,null,null,null,null,1,90,-11230,90,-110,2]
[null,null,null,null,null,null,null,null,null,null,null,null,null,1,90,-11140,90,-110,2]
[null,null,null,null,null,null,null,null,null,null,null,null,null,1,90,-11050,90,-110,2]
[null,null,null,null,null,null,null,null,null,null,null,null,null,0,-110,-11160,90,-110,2]
[null,null,null,null,null,null,null,null,null,null,null,null,null,0,-110,-11270,90,-110,2]
[null,null,null,null,null,null,null,null,null,null,null,null,null,1,90,-11180,90,-110,2]
[null,null,null,null,null,null,null,null,null,null,null,null,null,1,90,-11090,90,-110,2]
[null,null,null,null,null,null,null,null,null,null,null,null,null,0,-110,-11200,90,-110,2]
[null,null,null,null,null,null,null,null,null,null,null,null,null,0,-110,-11310,90,-110,2]
[null,null,null,null,null,null,null,null,null,null,null,null,null,1,90,-11220,90,-110,2]
[null,null,null,null,null,null,null,null,null,null,null,null,null,1,90,-11130,90,-110,2]
[null,null,null,null,null,null,null,null,null,null,null,null,null,1,90,-11040,90,-110,2]
[null,null,null,null,null,null,null,null,null,null,null,null,null,1,90,-10950,90,-110,2]
[null,null,null,null,null,null,null,null,null,null,null,null,null,1,90,-10860,90,-110,2]
[null,null,null,null,null,null,null,null,null,null,null,null,null,1,90,-10770,90,-110,2]
[null,null,null,null,null,null,null,null,null,null,null,null,null,1,90,-10680,90,-110,2]
[null,null,null,null,null,null,null,null,null,null,null,null,null,0,-110,-10790,90,-110,2]
[null,null,null,null,null,null,null,null,null,null,null,null,null,0,-110,-10900,90,-110,2]
[null,null,null,null,null,null,null,null,null,null,null,null,null,0,-110,-11010,90,-110,2]
[null,null,null,null,null,null,null,null,null,null,null,null,null,0,-110,-11120,90,-110,2]
[null,null,null,null,null,null,null,null,null,null,null,null,null,0,-110,-11230,90,-110,2]
[null,null,null,null,null,null,null,null,null,null,null,null,null,1,90,-11140,90,-110,2]
[null,null,null,null,null,null,null,null,null,null,null,null,null,0,-110,-11250,90,-110,2]
[null,null,null,null,null,null,null,null,null,null,null,null,null,0,-110,-11360,90,-110,2]
[null,null,null,null,null,null,null,null,null,null,null,null,null,0,-110,-11470,90,-110,2]
[null,null,null,null,null,null,null,null,null,null,null,null,null,1,90,-11380,90,-110,2]
[null,null,null,null,null,null,null,null,null,null,null,null,null,0,-110,-11490,90,-110,2]
[null,null,null,null,null,null,null,null,null,null,null,null,null,1,90,-11400,90,-110,2]
[null,null,null,null,null,null,null,null,null,null,null,null,null,1,90,-11310,90,-110,2]
[null,null,null,null,null,null,null,null,null,null,null,null,null,{"$f":"INT(MOD(RAND(),2)*S967)","v":1},{"$f":"IF(N967,Q967,R967)","v":90},-11220,90,-110,2]
[null,null,null,null,null,null,null,null,null,null,null,null,null,0,-110,{"$f":"O968+P967","v":-11330},{"$f":"Q967","v":90},-110,2]
[null,null,null,null,null,null,null,null,null,null,null,null,null,1,90,-11240,90,-110,2]
[null,null,null,null,null,null,null,null,null,null,null,null,null,0,-110,-11350,90,-110,2]
[null,null,null,null,null,null,null,null,null,null,null,null,null,0,-110,-11460,90,-110,2]
[null,null,null,null,null,null,null,null,null,null,null,null,null,1,90,-11370,90,-110,2]
[null,null,null,null,null,null,null,null,null,null,null,null,null,1,90,-11280,90,-110,2]
[null,null,null,null,null,null,null,null,null,null,null,null,null,1,90,-11190,90,-110,2]
[null,null,null,null,null,null,null,null,null,null,null,null,null,1,90,-11100,90,-110,2]
[null,null,null,null,null,null,null,null,null,null,null,null,null,0,-110,-11210,90,-110,2]
[null,null,null,null,null,null,null,null,null,null,null,null,null,0,-110,-11320,90,-110,2]
[null,null,null,null,null,null,null,null,null,null,null,null,null,1,90,-11230,90,-110,2]
[null,null,null,null,null,null,null,null,null,null,null,null,null,1,90,-11140,90,-110,2]
[null,null,null,null,null,null,null,null,null,null,null,null,null,0,-110,-11250,90,-110,2]
[null,null,null,null,null,null,null,null,null,null,null,null,null,1,90,-11160,90,-110,2]
[null,null,null,null,null,null,null,null,null,null,null,null,null,1,90,-11070,90,-110,2]
[null,null,null,null,null,null,null,null,null,null,null,null,null,1,90,-10980,90,-110,2]
[null,null,null,null,null,null,null,null,null,null,null,null,null,0,-110,-11090,90,-110,2]
[null,null,null,null,null,null,null,null,null,null,null,null,null,0,-110,-11200,90,-110,2]
[null,null,null,null,null,null,null,null,null,null,null,null,null,0,-110,-11310,90,-110,2]
[null,null,null,null,null,null,null,null,null,null,null,null,null,0,-110,-11420,90,-110,2]
[null,null,null,null,null,null,null,null,null,null,null,null,null,1,90,-11330,90,-110,2]
[null,null,null,null,null,null,null,null,null,null,null,null,null,0,-110,-11440,90,-110,2]
[null,null,null,null,null,null,null,null,null,null,null,null,null,0,-110,-11550,90,-110,2]
[null,null,null,null,null,null,null,null,null,null,null,null,null,0,-110,-11660,90,-110,2]
[null,null,null,null,null,null,null,null,null,null,null,null,null,0,-110,-11770,90,-110,2]
[null,null,null,null,null,null,null,null,null,null,null,null,null,1,90,-11680,90,-110,2]
[null,null,null,null,null,null,null,null,null,null,null,null,null,0,-110,-11790,90,-110,2]
[null,null,null,null,null,null,null,null,null,null,null,null,null,1,90,-11700,90,-110,2]
[null,null,null,null,null,null,null,null,null,null,null,null,null,0,-110,-11810,90,-110,2]
[null,null,null,null,null,null,null,null,null,null,null,null,null,0,-110,-11920,90,-110,2]
[null,null,null,null,null,null,null,null,null,null,null,null,null,1,90,-11830,90,-110,2]
[null,null,null,null,null,null,null,null,null,null,null,null,null,0,-110,-11940,90,-110,2]
[null,null,null,null,null,null,null,null,null,null,null,null,null,0,-110,-12050,90,-110,2]
[null,null,null,null,null,null,null,null,null,null,null,null,null,1,90,-11960,90,-110,2]
[null,null,null,null,null,null,null,null,null,null,null,null,null,1,90,-11870,90,-110,2]
[null,null,null,null,null,null,null,null,null,null,null,null,null,0,-110,-11980,90,-110,2]
[null,null,null,null,null,null,null,null,null,null,null,null,null,0,-110,-12090,90,-110,2]
[null,null,null,null,null,null,null,null,null,null,null,null,null,0,-110,-12200,90,-110,2]
[null,null,null,null,null,null,null,null,null,null,null,null,null,1,90,-12110,90,-110,2]